{"text_format":"1","workbook":"xlsx","n_sheets":2,"sheets":["Стимуляторы","Таблицы стимуляторов"],"not_rendered":{"charts":0,"images":1,"macros":0,"external_links":0,"defined_names":1,"comments":0,"pivot_tables":0},"unopened":[],"bounds":{"document_bytes":16777216,"sheet_cells":100000,"rows_first":2000,"rows_last":500,"rows_between":2000,"halvings":0,"cell_chars":16384,"cell_head_chars":4096},"cells_cut":0,"cells_raw":0,"read":"whole","date_system":"1900"}

{"sheet":"Стимуляторы","index":0,"n_rows":14,"n_cols":13,"rows_kept":14,"cut":false,"hidden":false,"merged":[[23,10,24,10],[4,5,5,5],[4,4,5,4],[4,3,5,3],[4,1,5,1],[21,10,22,10],[4,10,5,10],[4,0,5,0],[4,6,5,6],[4,7,5,7],[4,8,5,8],[4,9,5,9],[2,5,3,5],[2,4,3,4],[2,3,3,3],[2,12,3,12],[2,11,3,11],[2,10,3,10],[2,9,3,9],[4,12,5,12],[4,11,5,11],[0,0,1,1],[12,14,12,15],[13,14,13,15],[2,14,2,15],[3,14,3,15],[4,14,4,15],[5,14,5,15],[6,14,6,15],[2,0,3,0],[2,8,3,8],[2,1,3,1],[0,3,1,12],[2,7,3,7],[2,6,3,6],[14,14,14,15],[7,14,7,15],[8,14,8,15],[9,14,9,15],[10,14,10,15],[11,14,11,15]]}
[]
[]
[null,null,null,"Рекуперант альфа М","Перцептил бета М","Перцептил альфа М","Перцептил бета М","Перцептил альфа","Перцептил бета","Перцептил альфа М","Перцептил бета М","Перцептил альфа","Перцептил бета"]
[]
[]
[]
[null,null,null,{"$f":"VLOOKUP(D3,'Таблицы стимуляторов'!$A$2:$N$43,13,0)","v":"токсичность"},{"$f":"VLOOKUP(E3,'Таблицы стимуляторов'!$A$2:$N$43,13,0)","v":"токсичность"},{"$f":"VLOOKUP(F3,'Таблицы стимуляторов'!$A$2:$N$43,13,0)","v":"токсичность"},{"$f":"VLOOKUP(G3,'Таблицы стимуляторов'!$A$2:$N$43,13,0)","v":"токсичность"},{"$f":"VLOOKUP(H3,'Таблицы стимуляторов'!$A$2:$N$43,13,0)","v":"токсичность"},{"$f":"VLOOKUP(I3,'Таблицы стимуляторов'!$A$2:$N$43,13,0)","v":"токсичность"},{"$f":"VLOOKUP(J3,'Таблицы стимуляторов'!$A$2:$N$43,13,0)","v":"токсичность"},{"$f":"VLOOKUP(K3,'Таблицы стимуляторов'!$A$2:$N$43,13,0)","v":"токсичность"},{"$f":"VLOOKUP(L3,'Таблицы стимуляторов'!$A$2:$N$43,13,0)","v":"токсичность"},{"$f":"VLOOKUP(M3,'Таблицы стимуляторов'!$A$2:$N$43,13,0)","v":"токсичность"}]
[null,null,null,{"$f":"VLOOKUP(D3,'Таблицы стимуляторов'!$A$2:$N$43,14,0)","v":4},{"$f":"VLOOKUP(E3,'Таблицы стимуляторов'!$A$2:$N$43,14,0)","v":4},{"$f":"VLOOKUP(F3,'Таблицы стимуляторов'!$A$2:$N$43,14,0)","v":5},{"$f":"VLOOKUP(G3,'Таблицы стимуляторов'!$A$2:$N$43,14,0)","v":4},{"$f":"VLOOKUP(H3,'Таблицы стимуляторов'!$A$2:$N$43,14,0)","v":5},{"$f":"VLOOKUP(I3,'Таблицы стимуляторов'!$A$2:$N$43,14,0)","v":4},{"$f":"VLOOKUP(J3,'Таблицы стимуляторов'!$A$2:$N$43,14,0)","v":5},{"$f":"VLOOKUP(K3,'Таблицы стимуляторов'!$A$2:$N$43,14,0)","v":4},{"$f":"VLOOKUP(L3,'Таблицы стимуляторов'!$A$2:$N$43,14,0)","v":5},{"$f":"VLOOKUP(M3,'Таблицы стимуляторов'!$A$2:$N$43,14,0)","v":4}]
[null,null,null,{"$f":"VLOOKUP(D3,Таблица_стимуляторы[],3,0)","v":"регенирация"},{"$f":"VLOOKUP(E3,Таблица_стимуляторы[],3,0)","v":"Точность"},{"$f":"VLOOKUP(F3,Таблица_стимуляторы[],3,0)","v":"Точность"},{"$f":"VLOOKUP(G3,Таблица_стимуляторы[],3,0)","v":"Точность"},{"$f":"VLOOKUP(H3,Таблица_стимуляторы[],3,0)","v":"Точность"},{"$f":"VLOOKUP(I3,Таблица_стимуляторы[],3,0)","v":"Точность"},{"$f":"VLOOKUP(J3,Таблица_стимуляторы[],3,0)","v":"Точность"},{"$f":"VLOOKUP(K3,Таблица_стимуляторы[],3,0)","v":"Точность"},{"$f":"VLOOKUP(L3,Таблица_стимуляторы[],3,0)","v":"Точность"},{"$f":"VLOOKUP(M3,Таблица_стимуляторы[],3,0)","v":"Точность"}]
[null,null,null,{"$f":"VLOOKUP(D3,Таблица_расчета_стимуляторов[],VALUE(3),0)","v":0.11},{"$f":"VLOOKUP(E3,Таблица_расчета_стимуляторов[],VALUE(4),0)","v":2.1875000000000002E-3},{"$f":"VLOOKUP(F3,Таблица_расчета_стимуляторов[],VALUE(5),0)","v":7.4999999999999997E-3},{"$f":"VLOOKUP(G3,Таблица_расчета_стимуляторов[],VALUE(6),0)","v":1.0937500000000001E-3},{"$f":"VLOOKUP(H3,Таблица_расчета_стимуляторов[],VALUE(7),0)","v":0.1},{"$f":"VLOOKUP(I3,Таблица_расчета_стимуляторов[],VALUE(8),0)","v":0.03},{"$f":"VLOOKUP(J3,Таблица_расчета_стимуляторов[],VALUE(9),0)","v":3.7499999999999999E-3},{"$f":"VLOOKUP(K3,Таблица_расчета_стимуляторов[],VALUE(10),0)","v":5.4687500000000005E-4},{"$f":"VLOOKUP(L3,Таблица_расчета_стимуляторов[],VALUE(11),0)","v":0.05},{"$f":"VLOOKUP(M3,Таблица_расчета_стимуляторов[],VALUE(12),0)","v":1.4999999999999999E-2}]
[null,null,null,{"$f":"VLOOKUP(D3,Таблица_стимуляторы[],5,0)","v":"Вост. эфф."},{"$f":"VLOOKUP(E3,Таблица_стимуляторы[],5,0)","v":"Крит. поп. "},{"$f":"VLOOKUP(F3,Таблица_стимуляторы[],5,0)","v":"Крит. поп. "},{"$f":"VLOOKUP(G3,Таблица_стимуляторы[],5,0)","v":"Крит. поп. "},{"$f":"VLOOKUP(H3,Таблица_стимуляторы[],5,0)","v":"Крит. поп. "},{"$f":"VLOOKUP(I3,Таблица_стимуляторы[],5,0)","v":"Крит. поп. "},{"$f":"VLOOKUP(J3,Таблица_стимуляторы[],5,0)","v":"Крит. поп. "},{"$f":"VLOOKUP(K3,Таблица_стимуляторы[],5,0)","v":"Крит. поп. "},{"$f":"VLOOKUP(L3,Таблица_стимуляторы[],5,0)","v":"Крит. поп. "},{"$f":"VLOOKUP(M3,Таблица_стимуляторы[],5,0)","v":"Крит. поп. "}]
[null,null,null,{"$f":"VLOOKUP(D3,Таблица_расчета_стимуляторов[],VALUE(15),0)","v":8},{"$f":"VLOOKUP(E3,Таблица_расчета_стимуляторов[],VALUE(16),0)","v":2.1875000000000002E-3},{"$f":"VLOOKUP(F3,Таблица_расчета_стимуляторов[],VALUE(17),0)","v":7.4999999999999997E-3},{"$f":"VLOOKUP(G3,Таблица_расчета_стимуляторов[],VALUE(18),0)","v":1.0937500000000001E-3},{"$f":"VLOOKUP(H3,Таблица_расчета_стимуляторов[],VALUE(19),0)","v":0.1},{"$f":"VLOOKUP(I3,Таблица_расчета_стимуляторов[],VALUE(20),0)","v":0.03},{"$f":"VLOOKUP(J3,Таблица_расчета_стимуляторов[],VALUE(21),0)","v":3.7499999999999999E-3},{"$f":"VLOOKUP(K3,Таблица_расчета_стимуляторов[],VALUE(22),0)","v":5.4687500000000005E-4},{"$f":"VLOOKUP(L3,Таблица_расчета_стимуляторов[],VALUE(23),0)","v":0.05},{"$f":"VLOOKUP(M3,Таблица_расчета_стимуляторов[],VALUE(24),0)","v":1.4999999999999999E-2}]
[null,null,null,{"$f":"VLOOKUP(D3,Таблица_стимуляторы[],7,0)","v":0},{"$f":"VLOOKUP(E3,Таблица_стимуляторы[],7,0)","v":"Эфф.боепр."},{"$f":"VLOOKUP(F3,Таблица_стимуляторы[],7,0)","v":"Эфф.боепр."},{"$f":"VLOOKUP(G3,Таблица_стимуляторы[],7,0)","v":"Эфф.боепр."},{"$f":"VLOOKUP(H3,Таблица_стимуляторы[],7,0)","v":"Эфф.боепр."},{"$f":"VLOOKUP(I3,Таблица_стимуляторы[],7,0)","v":"Эфф.боепр."},{"$f":"VLOOKUP(J3,Таблица_стимуляторы[],7,0)","v":"Эфф.боепр."},{"$f":"VLOOKUP(K3,Таблица_стимуляторы[],7,0)","v":"Эфф.боепр."},{"$f":"VLOOKUP(L3,Таблица_стимуляторы[],7,0)","v":"Эфф.боепр."},{"$f":"VLOOKUP(M3,Таблица_стимуляторы[],7,0)","v":"Эфф.боепр."}]
[null,null,null,{"$f":"VLOOKUP(D3,Таблица_расчета_стимуляторов[],VALUE(27),0)","v":0},{"$f":"VLOOKUP(E3,Таблица_расчета_стимуляторов[],VALUE(28),0)","v":2.1875000000000002E-3},{"$f":"VLOOKUP(F3,Таблица_расчета_стимуляторов[],VALUE(29),0)","v":7.4999999999999997E-3},{"$f":"VLOOKUP(G3,Таблица_расчета_стимуляторов[],VALUE(30),0)","v":1.0937500000000001E-3},{"$f":"VLOOKUP(H3,Таблица_расчета_стимуляторов[],VALUE(31),0)","v":0.1},{"$f":"VLOOKUP(I3,Таблица_расчета_стимуляторов[],VALUE(32),0)","v":0.03},{"$f":"VLOOKUP(J3,Таблица_расчета_стимуляторов[],VALUE(33),0)","v":3.7499999999999999E-3},{"$f":"VLOOKUP(K3,Таблица_расчета_стимуляторов[],VALUE(34),0)","v":5.4687500000000005E-4},{"$f":"VLOOKUP(L3,Таблица_расчета_стимуляторов[],VALUE(35),0)","v":0.05},{"$f":"VLOOKUP(M3,Таблица_расчета_стимуляторов[],VALUE(36),0)","v":1.4999999999999999E-2}]

{"sheet":"Таблицы стимуляторов","index":1,"n_rows":43,"n_cols":52,"rows_kept":43,"cut":false,"hidden":false,"merged":[[0,16,0,51]]}
[null,null,null,null,null,null,null,null,null,null,null,null,null,null,null,null,"Таблица расчетов стимуляторов"]
[null,null,null,null,null,null,null,null,null,null,null,null,null,null,null,"Столбец1","Столбец2","Столбец3","Столбец4","Столбец5","Столбец6","Столбец7","Столбец8","Столбец9","Столбец10","Столбец11","Столбец12","Кол-во","Столбец13","Столбец14","Столбец15","Столбец16","Столбец17","Столбец18","Столбец19","Столбец20","Столбец21","Столбец22","Столбец23","Кол-во2","Столбец24","Столбец25","Столбец26","Столбец27","Столбец28","Столбец29","Столбец30","Столбец31","Столбец32","Столбец33","Столбец34","Кол-во4"]
[null,null,null,null,null,null,null,null,null,null,null,null,null,null,null,"Выберите стимулятор",0,0,0,0,0,0,0,0,0,0,0,0,0,0,0,0,0,0,0,0,0,0,0,0]
[null,null,null,null,null,null,null,null,null,null,null,null,null,null,null,"Гемобуфер Альфа","Здоровье",{"$f":"IF(Стимуляторы!$D$3=\"гемобуфер альфа\",0.5^(COUNTIF(Стимуляторы!$D$3,\"гемобуфер альфа\")-1)*$D$17,0)","v":0},{"$f":"IF(Стимуляторы!E3=\"гемобуфер альфа\",0.5^(COUNTIF(Стимуляторы!$D$3:E3,\"гемобуфер альфа\")-1)*$D$17,0)","v":0},{"$f":"IF(Стимуляторы!F3=\"гемобуфер альфа\",0.5^(COUNTIF(Стимуляторы!D3:F3,\"гемобуфер альфа\")-1)*$D$17,0)","v":0},{"$f":"IF(Стимуляторы!G3=\"гемобуфер альфа\",0.5^(COUNTIF(Стимуляторы!D3:G3,\"гемобуфер альфа\")-1)*$D$17,0)","v":0},{"$f":"IF(Стимуляторы!H3=\"гемобуфер альфа\",0.5^(COUNTIF(Стимуляторы!D3:H3,\"гемобуфер альфа\")-1)*$D$17,0)","v":0},{"$f":"IF(Стимуляторы!I3=\"гемобуфер альфа\",0.5^(COUNTIF(Стимуляторы!D3:I3,\"гемобуфер альфа\")-1)*$D$17,0)","v":0},{"$f":"IF(Стимуляторы!J3=\"гемобуфер альфа\",0.5^(COUNTIF(Стимуляторы!D3:J3,\"гемобуфер альфа\")-1)*$D$17,0)","v":0},{"$f":"IF(Стимуляторы!K3=\"гемобуфер альфа\",0.5^(COUNTIF(Стимуляторы!D3:K3,\"гемобуфер альфа\")-1)*$D$17,0)","v":0},{"$f":"IF(Стимуляторы!L3=\"гемобуфер альфа\",0.5^(COUNTIF(Стимуляторы!D3:L3,\"гемобуфер альфа\")-1)*$D$17,0)","v":0},{"$f":"IF(Стимуляторы!M3=\"гемобуфер альфа\",0.5^(COUNTIF(Стимуляторы!D3:M3,\"гемобуфер альфа\")-1)*$D$17,0)","v":0},{"$f":"COUNTIF(R4:AA4,\">0\")","v":0},"Сопр. эфф.",{"$f":"IF(Стимуляторы!D3=\"гемобуфер альфа\",0.5^(COUNTIF(Стимуляторы!$D$3,\"гемобуфер альфа\")-1)*$F$17,0)","v":0},{"$f":"IF(Стимуляторы!E3=\"гемобуфер альфа\",0.5^(COUNTIF(Стимуляторы!$D$3:E3,\"гемобуфер альфа\")-1)*$F$17,0)","v":0},{"$f":"IF(Стимуляторы!F3=\"гемобуфер альфа\",0.5^(COUNTIF(Стимуляторы!$D$3:F3,\"гемобуфер альфа\")-1)*$F$17,0)","v":0},{"$f":"IF(Стимуляторы!G3=\"гемобуфер альфа\",0.5^(COUNTIF(Стимуляторы!$D$3:G3,\"гемобуфер альфа\")-1)*$F$17,0)","v":0},{"$f":"IF(Стимуляторы!H3=\"гемобуфер альфа\",0.5^(COUNTIF(Стимуляторы!$D$3:H3,\"гемобуфер альфа\")-1)*$F$17,0)","v":0},{"$f":"IF(Стимуляторы!I3=\"гемобуфер альфа\",0.5^(COUNTIF(Стимуляторы!$D$3:I3,\"гемобуфер альфа\")-1)*$F$17,0)","v":0},{"$f":"IF(Стимуляторы!J3=\"гемобуфер альфа\",0.5^(COUNTIF(Стимуляторы!$D$3:J3,\"гемобуфер альфа\")-1)*$F$17,0)","v":0},{"$f":"IF(Стимуляторы!K3=\"гемобуфер альфа\",0.5^(COUNTIF(Стимуляторы!$D$3:K3,\"гемобуфер альфа\")-1)*$F$17,0)","v":0},{"$f":"IF(Стимуляторы!L3=\"гемобуфер альфа\",0.5^(COUNTIF(Стимуляторы!$D$3:L3,\"гемобуфер альфа\")-1)*$F$17,0)","v":0},{"$f":"IF(Стимуляторы!M3=\"гемобуфер альфа\",0.5^(COUNTIF(Стимуляторы!$D$3:M3,\"гемобуфер альфа\")-1)*$F$17,0)","v":0},{"$f":"COUNTIF(AD4:AM4,\">0\")","v":0}]
[null,null,null,null,null,null,null,null,null,null,null,null,null,null,null,"Гемобуфер бета","Здоровье",{"$f":"IF(Стимуляторы!D3=\"гемобуфер бета\",0.5^(COUNTIF(Стимуляторы!$D$3,\"гемобуфер бета\")+$AB$4-1)*$D$24,0)","v":0},{"$f":"IF(Стимуляторы!E3=\"гемобуфер бета\",0.5^(COUNTIF(Стимуляторы!$D$3:E3,\"гемобуфер бета\")+$AB$4-1)*$D$24,0)","v":0},{"$f":"IF(Стимуляторы!F3=\"гемобуфер бета\",0.5^(COUNTIF(Стимуляторы!$D$3:F3,\"гемобуфер бета\")+$AB$4-1)*$D$24,0)","v":0},{"$f":"IF(Стимуляторы!G3=\"гемобуфер бета\",0.5^(COUNTIF(Стимуляторы!$D$3:G3,\"гемобуфер бета\")+$AB$4-1)*$D$24,0)","v":0},{"$f":"IF(Стимуляторы!H3=\"гемобуфер бета\",0.5^(COUNTIF(Стимуляторы!$D$3:H3,\"гемобуфер бета\")+$AB$4-1)*$D$24,0)","v":0},{"$f":"IF(Стимуляторы!I3=\"гемобуфер бета\",0.5^(COUNTIF(Стимуляторы!$D$3:I3,\"гемобуфер бета\")+$AB$4-1)*$D$24,0)","v":0},{"$f":"IF(Стимуляторы!J3=\"гемобуфер бета\",0.5^(COUNTIF(Стимуляторы!$D$3:J3,\"гемобуфер бета\")+$AB$4-1)*$D$24,0)","v":0},{"$f":"IF(Стимуляторы!K3=\"гемобуфер бета\",0.5^(COUNTIF(Стимуляторы!$D$3:K3,\"гемобуфер бета\")+$AB$4-1)*$D$24,0)","v":0},{"$f":"IF(Стимуляторы!L3=\"гемобуфер бета\",0.5^(COUNTIF(Стимуляторы!$D$3:L3,\"гемобуфер бета\")+$AB$4-1)*$D$24,0)","v":0},{"$f":"IF(Стимуляторы!M3=\"гемобуфер бета\",0.5^(COUNTIF(Стимуляторы!$D$3:M3,\"гемобуфер бета\")+$AB$4-1)*$D$24,0)","v":0},0,"Сопр. эфф.",{"$f":"IF(Стимуляторы!D3=\"гемобуфер бета\",0.5^(COUNTIF(Стимуляторы!$D$3,\"гемобуфер бета\")+$AN$4-1)*$F$24,0)","v":0},{"$f":"IF(Стимуляторы!E3=\"гемобуфер бета\",0.5^(COUNTIF(Стимуляторы!$D$3:E3,\"гемобуфер бета\")+$AN$4-1)*$F$24,0)","v":0},{"$f":"IF(Стимуляторы!F3=\"гемобуфер бета\",0.5^(COUNTIF(Стимуляторы!$D$3:F3,\"гемобуфер бета\")+$AN$4-1)*$F$24,0)","v":0},{"$f":"IF(Стимуляторы!G3=\"гемобуфер бета\",0.5^(COUNTIF(Стимуляторы!$D$3:G3,\"гемобуфер бета\")+$AN$4-1)*$F$24,0)","v":0},{"$f":"IF(Стимуляторы!H3=\"гемобуфер бета\",0.5^(COUNTIF(Стимуляторы!$D$3:H3,\"гемобуфер бета\")+$AN$4-1)*$F$24,0)","v":0},{"$f":"IF(Стимуляторы!I3=\"гемобуфер бета\",0.5^(COUNTIF(Стимуляторы!$D$3:I3,\"гемобуфер бета\")+$AN$4-1)*$F$24,0)","v":0},{"$f":"IF(Стимуляторы!J3=\"гемобуфер бета\",0.5^(COUNTIF(Стимуляторы!$D$3:J3,\"гемобуфер бета\")+$AN$4-1)*$F$24,0)","v":0},{"$f":"IF(Стимуляторы!K3=\"гемобуфер бета\",0.5^(COUNTIF(Стимуляторы!$D$3:K3,\"гемобуфер бета\")+$AN$4-1)*$F$24,0)","v":0},{"$f":"IF(Стимуляторы!L3=\"гемобуфер бета\",0.5^(COUNTIF(Стимуляторы!$D$3:L3,\"гемобуфер бета\")+$AN$4-1)*$F$24,0)","v":0},{"$f":"IF(Стимуляторы!M3=\"гемобуфер бета\",0.5^(COUNTIF(Стимуляторы!$D$3:M3,\"гемобуфер бета\")+$AN$4-1)*$F$24,0)","v":0},{"$f":"COUNTIF(AD5:AM5,\">0\")","v":0}]
[null,null,null,null,null,null,null,null,null,null,null,null,null,null,null,"Гемобуфер Альфа М","Здоровье",{"$f":"IF(Стимуляторы!D3=\"гемобуфер альфа М\",0.5^(COUNTIF(Стимуляторы!$D$3,\"гемобуфер альфа М\")+AB4+AB5-1)*$D$31,0)","v":0},{"$f":"IF(Стимуляторы!E3=\"гемобуфер альфа М\",0.5^(COUNTIF(Стимуляторы!$D$3:E3,\"гемобуфер альфа М\")+$AB$4+$AB$5-1)*$D$31,0)","v":0},{"$f":"IF(Стимуляторы!F3=\"гемобуфер альфа М\",0.5^(COUNTIF(Стимуляторы!$D$3:F3,\"гемобуфер альфа М\")+$AB$4+$AB$5-1)*$D$31,0)","v":0},{"$f":"IF(Стимуляторы!G3=\"гемобуфер альфа М\",0.5^(COUNTIF(Стимуляторы!$D$3:G3,\"гемобуфер альфа М\")+$AB$4+$AB$5-1)*$D$31,0)","v":0},{"$f":"IF(Стимуляторы!H3=\"гемобуфер альфа М\",0.5^(COUNTIF(Стимуляторы!$D$3:H3,\"гемобуфер альфа М\")+$AB$4+$AB$5-1)*$D$31,0)","v":0},{"$f":"IF(Стимуляторы!I3=\"гемобуфер альфа М\",0.5^(COUNTIF(Стимуляторы!$D$3:I3,\"гемобуфер альфа М\")+$AB$4+$AB$5-1)*$D$31,0)","v":0},{"$f":"IF(Стимуляторы!J3=\"гемобуфер альфа М\",0.5^(COUNTIF(Стимуляторы!$D$3:J3,\"гемобуфер альфа М\")+$AB$4+$AB$5-1)*$D$31,0)","v":0},{"$f":"IF(Стимуляторы!K3=\"гемобуфер альфа М\",0.5^(COUNTIF(Стимуляторы!$D$3:K3,\"гемобуфер альфа М\")+$AB$4+$AB$5-1)*$D$31,0)","v":0},{"$f":"IF(Стимуляторы!L3=\"гемобуфер альфа М\",0.5^(COUNTIF(Стимуляторы!$D$3:L3,\"гемобуфер альфа М\")+$AB$4+$AB$5-1)*$D$31,0)","v":0},{"$f":"IF(Стимуляторы!M3=\"гемобуфер альфа М\",0.5^(COUNTIF(Стимуляторы!$D$3:M3,\"гемобуфер альфа М\")+$AB$4+$AB$5-1)*$D$31,0)","v":0},{"$f":"COUNTIF(R6:AA6,\">0\")","v":0},"Сопр. эфф.",{"$f":"IF(Стимуляторы!D3=\"гемобуфер альфа М\",0.5^(COUNTIF(Стимуляторы!$D$3,\"гемобуфер альфа М\")+AN4+AN5-1)*$F$31,0)","v":0},{"$f":"IF(Стимуляторы!E3=\"гемобуфер альфа М\",0.5^(COUNTIF(Стимуляторы!$D$3:E3,\"гемобуфер альфа М\")+$AN$4+$AN$5-1)*$F$31,0)","v":0},{"$f":"IF(Стимуляторы!F3=\"гемобуфер альфа М\",0.5^(COUNTIF(Стимуляторы!$D$3:F3,\"гемобуфер альфа М\")+$AN$4+$AN$5-1)*$F$31,0)","v":0},{"$f":"IF(Стимуляторы!G3=\"гемобуфер альфа М\",0.5^(COUNTIF(Стимуляторы!$D$3:G3,\"гемобуфер альфа М\")+$AN$4+$AN$5-1)*$F$31,0)","v":0},{"$f":"IF(Стимуляторы!H3=\"гемобуфер альфа М\",0.5^(COUNTIF(Стимуляторы!$D$3:H3,\"гемобуфер альфа М\")+$AN$4+$AN$5-1)*$F$31,0)","v":0},{"$f":"IF(Стимуляторы!I3=\"гемобуфер альфа М\",0.5^(COUNTIF(Стимуляторы!$D$3:I3,\"гемобуфер альфа М\")+$AN$4+$AN$5-1)*$F$31,0)","v":0},{"$f":"IF(Стимуляторы!J3=\"гемобуфер альфа М\",0.5^(COUNTIF(Стимуляторы!$D$3:J3,\"гемобуфер альфа М\")+$AN$4+$AN$5-1)*$F$31,0)","v":0},{"$f":"IF(Стимуляторы!K3=\"гемобуфер альфа М\",0.5^(COUNTIF(Стимуляторы!$D$3:K3,\"гемобуфер альфа М\")+$AN$4+$AN$5-1)*$F$31,0)","v":0},{"$f":"IF(Стимуляторы!L3=\"гемобуфер альфа М\",0.5^(COUNTIF(Стимуляторы!$D$3:L3,\"гемобуфер альфа М\")+$AN$4+$AN$5-1)*$F$31,0)","v":0},{"$f":"IF(Стимуляторы!M3=\"гемобуфер альфа М\",0.5^(COUNTIF(Стимуляторы!$D$3:M3,\"гемобуфер альфа М\")+$AN$4+$AN$5-1)*$F$31,0)","v":0},0]
[null,null,null,null,null,null,null,null,null,null,null,null,null,null,null,"Гемобуфер бета М","Здоровье",{"$f":"IF(Стимуляторы!$D$3=\"гемобуфер бета М\",0.5^(COUNTIF(Стимуляторы!$D$3,\"гемобуфер бета М\")+$AB$4+$AB$5+$AB$6-1)*$D$38,0)","v":0},{"$f":"IF(Стимуляторы!E3=\"гемобуфер бета М\",0.5^(COUNTIF(Стимуляторы!$D$3:E3,\"гемобуфер бета М\")+$AB$4+$AB$5+$AB$6-1)*$D$38,0)","v":0},{"$f":"IF(Стимуляторы!F3=\"гемобуфер бета М\",0.5^(COUNTIF(Стимуляторы!$D$3:F3,\"гемобуфер бета М\")+$AB$4+$AB$5+$AB$6-1)*$D$38,0)","v":0},{"$f":"IF(Стимуляторы!G3=\"гемобуфер бета М\",0.5^(COUNTIF(Стимуляторы!$D$3:G3,\"гемобуфер бета М\")+$AB$4+$AB$5+$AB$6-1)*$D$38,0)","v":0},{"$f":"IF(Стимуляторы!H3=\"гемобуфер бета М\",0.5^(COUNTIF(Стимуляторы!$D$3:H3,\"гемобуфер бета М\")+$AB$4+$AB$5+$AB$6-1)*$D$38,0)","v":0},{"$f":"IF(Стимуляторы!I3=\"гемобуфер бета М\",0.5^(COUNTIF(Стимуляторы!$D$3:I3,\"гемобуфер бета М\")+$AB$4+$AB$5+$AB$6-1)*$D$38,0)","v":0},{"$f":"IF(Стимуляторы!J3=\"гемобуфер бета М\",0.5^(COUNTIF(Стимуляторы!$D$3:J3,\"гемобуфер бета М\")+$AB$4+$AB$5+$AB$6-1)*$D$38,0)","v":0},{"$f":"IF(Стимуляторы!K3=\"гемобуфер бета М\",0.5^(COUNTIF(Стимуляторы!$D$3:K3,\"гемобуфер бета М\")+$AB$4+$AB$5+$AB$6-1)*$D$38,0)","v":0},{"$f":"IF(Стимуляторы!L3=\"гемобуфер бета М\",0.5^(COUNTIF(Стимуляторы!$D$3:L3,\"гемобуфер бета М\")+$AB$4+$AB$5+$AB$6-1)*$D$38,0)","v":0},{"$f":"IF(Стимуляторы!M3=\"гемобуфер бета М\",0.5^(COUNTIF(Стимуляторы!$D$3:M3,\"гемобуфер бета М\")+$AB$4+$AB$5+$AB$6-1)*$D$38,0)","v":0},{"$f":"COUNTIF(R7:AA7,\">0\")","v":0},"Сопр. эфф.",{"$f":"IF(Стимуляторы!D3=\"гемобуфер бета М\",0.5^(COUNTIF(Стимуляторы!$D$3,\"гемобуфер бета М\")+$AN$4+$AN$5+$AN$6-1)*$F$38,0)","v":0},{"$f":"IF(Стимуляторы!E3=\"гемобуфер бета М\",0.5^(COUNTIF(Стимуляторы!$D$3:E3,\"гемобуфер бета М\")+$AN$4+$AN$5+$AN$6-1)*$F$38,0)","v":0},{"$f":"IF(Стимуляторы!F3=\"гемобуфер бета М\",0.5^(COUNTIF(Стимуляторы!$D$3:F3,\"гемобуфер бета М\")+$AN$4+$AN$5+$AN$6-1)*$F$38,0)","v":0},{"$f":"IF(Стимуляторы!G3=\"гемобуфер бета М\",0.5^(COUNTIF(Стимуляторы!$D$3:G3,\"гемобуфер бета М\")+$AN$4+$AN$5+$AN$6-1)*$F$38,0)","v":0},{"$f":"IF(Стимуляторы!H3=\"гемобуфер бета М\",0.5^(COUNTIF(Стимуляторы!$D$3:H3,\"гемобуфер бета М\")+$AN$4+$AN$5+$AN$6-1)*$F$38,0)","v":0},{"$f":"IF(Стимуляторы!I3=\"гемобуфер бета М\",0.5^(COUNTIF(Стимуляторы!$D$3:I3,\"гемобуфер бета М\")+$AN$4+$AN$5+$AN$6-1)*$F$38,0)","v":0},{"$f":"IF(Стимуляторы!J3=\"гемобуфер бета М\",0.5^(COUNTIF(Стимуляторы!$D$3:J3,\"гемобуфер бета М\")+$AN$4+$AN$5+$AN$6-1)*$F$38,0)","v":0},{"$f":"IF(Стимуляторы!K3=\"гемобуфер бета М\",0.5^(COUNTIF(Стимуляторы!$D$3:K3,\"гемобуфер бета М\")+$AN$4+$AN$5+$AN$6-1)*$F$38,0)","v":0},{"$f":"IF(Стимуляторы!L3=\"гемобуфер бета М\",0.5^(COUNTIF(Стимуляторы!$D$3:L3,\"гемобуфер бета М\")+$AN$4+$AN$5+$AN$6-1)*$F$38,0)","v":0},{"$f":"IF(Стимуляторы!M3=\"гемобуфер бета М\",0.5^(COUNTIF(Стимуляторы!$D$3:M3,\"гемобуфер бета М\")+$AN$4+$AN$5+$AN$6-1)*$F$38,0)","v":0},0]
[null,null,null,null,null,null,null,null,null,null,null,null,null,null,null,null,null,{"$f":"IF(Стимуляторы!D8=\"гемобуфер альфа\",0.5^(COUNTIF(Стимуляторы!D8,\"гемобуфер альфа\")+AB7-1)*$D$24,0)","v":0},{"$f":"IF(Стимуляторы!E7=\"гемобуфер бета\",0.5^(COUNTIF(Стимуляторы!D13:E13,\"Здоровье\")-1)*$D$24,0)","v":0},{"$f":"IF(Стимуляторы!F8=\"гемобуфер альфа\",0.5^(COUNTIF(Стимуляторы!D8:F9,\"гемобуфер альфа\")-1)*$D$17,0)","v":0},{"$f":"IF(Стимуляторы!G8=\"гемобуфер альфа\",0.5^(COUNTIF(Стимуляторы!D8:G9,\"гемобуфер альфа\")-1)*$D$17,0)","v":0},{"$f":"IF(Стимуляторы!H8=\"гемобуфер альфа\",0.5^(COUNTIF(Стимуляторы!D8:H9,\"гемобуфер альфа\")-1)*$D$17,0)","v":0},{"$f":"IF(Стимуляторы!I8=\"гемобуфер альфа\",0.5^(COUNTIF(Стимуляторы!D8:I9,\"гемобуфер альфа\")-1)*$D$17,0)","v":0},{"$f":"IF(Стимуляторы!J8=\"гемобуфер альфа\",0.5^(COUNTIF(Стимуляторы!D8:J9,\"гемобуфер альфа\")-1)*$D$17,0)","v":0},{"$f":"IF(Стимуляторы!K8=\"гемобуфер альфа\",0.5^(COUNTIF(Стимуляторы!D8:K9,\"гемобуфер альфа\")-1)*$D$17,0)","v":0},{"$f":"IF(Стимуляторы!L8=\"гемобуфер альфа\",0.5^(COUNTIF(Стимуляторы!D8:L9,\"гемобуфер альфа\")-1)*$D$17,0)","v":0},{"$f":"IF(Стимуляторы!M8=\"гемобуфер альфа\",0.5^(COUNTIF(Стимуляторы!D8:M9,\"гемобуфер альфа\")-1)*$D$17,0)","v":0},{"$f":"COUNTIF(R8:AA8,\">0\")","v":0}]
[null,null,null,null,null,null,null,null,null,null,null,null,null,null,null,"Моториум альфа","ОД",{"$f":"IF(Стимуляторы!$D$3=\"Моториум альфа\",0.5^(COUNTIF(Стимуляторы!$D$3,\"Моториум альфа\")-1)*$D$18,0)","v":0},{"$f":"IF(Стимуляторы!$E$3=\"Моториум альфа\",0.5^(COUNTIF(Стимуляторы!$D$3:E3,\"Моториум альфа\")-1)*$D$18,0)","v":0},{"$f":"IF(Стимуляторы!F3=\"Моториум альфа\",0.5^(COUNTIF(Стимуляторы!$D$3:F3,\"Моториум альфа\")-1)*$D$18,0)","v":0},{"$f":"IF(Стимуляторы!G3=\"Моториум альфа\",0.5^(COUNTIF(Стимуляторы!$D$3:G3,\"Моториум альфа\")-1)*$D$18,0)","v":0},{"$f":"IF(Стимуляторы!H3=\"Моториум альфа\",0.5^(COUNTIF(Стимуляторы!$D$3:H3,\"Моториум альфа\")-1)*$D$18,0)","v":0},{"$f":"IF(Стимуляторы!I3=\"Моториум альфа\",0.5^(COUNTIF(Стимуляторы!$D$3:I3,\"Моториум альфа\")-1)*$D$18,0)","v":0},{"$f":"IF(Стимуляторы!J3=\"Моториум альфа\",0.5^(COUNTIF(Стимуляторы!$D$3:J3,\"Моториум альфа\")-1)*$D$18,0)","v":0},{"$f":"IF(Стимуляторы!K3=\"Моториум альфа\",0.5^(COUNTIF(Стимуляторы!$D$3:K3,\"Моториум альфа\")-1)*$D$18,0)","v":0},{"$f":"IF(Стимуляторы!L3=\"Моториум альфа\",0.5^(COUNTIF(Стимуляторы!$D$3:L3,\"Моториум альфа\")-1)*$D$18,0)","v":0},{"$f":"IF(Стимуляторы!M3=\"Моториум альфа\",0.5^(COUNTIF(Стимуляторы!$D$3:M3,\"Моториум альфа\")-1)*$D$18,0)","v":0},{"$f":"COUNTIF(R9:AA9,\">0\")","v":0},null,null,null,null,null,null,null,null,null,null,null,0]
[null,null,null,null,null,null,null,null,null,null,null,null,null,null,null,"Моториум бета","ОД",{"$f":"IF(Стимуляторы!$D$3=\"Моториум бета\",0.5^(COUNTIF(Стимуляторы!$D$3,\"Моториум бета\")-1)*$D$25,0)","v":0},{"$f":"IF(Стимуляторы!E3=\"Моториум бета\",0.5^(COUNTIF(Стимуляторы!$D$3:E3,\"Моториум бета\")+$AB$9-1)*$D$25,0)","v":0},{"$f":"IF(Стимуляторы!F3=\"Моториум бета\",0.5^(COUNTIF(Стимуляторы!$D$3:F3,\"Моториум бета\")+$AB$9-1)*$D$25,0)","v":0},{"$f":"IF(Стимуляторы!G3=\"Моториум бета\",0.5^(COUNTIF(Стимуляторы!$D$3:G3,\"Моториум бета\")+$AB$9-1)*$D$25,0)","v":0},{"$f":"IF(Стимуляторы!H3=\"Моториум бета\",0.5^(COUNTIF(Стимуляторы!$D$3:H3,\"Моториум бета\")+$AB$9-1)*$D$25,0)","v":0},{"$f":"IF(Стимуляторы!I3=\"Моториум бета\",0.5^(COUNTIF(Стимуляторы!$D$3:I3,\"Моториум бета\")+$AB$9-1)*$D$25,0)","v":0},{"$f":"IF(Стимуляторы!J3=\"Моториум бета\",0.5^(COUNTIF(Стимуляторы!$D$3:J3,\"Моториум бета\")+$AB$9-1)*$D$25,0)","v":0},{"$f":"IF(Стимуляторы!K3=\"Моториум бета\",0.5^(COUNTIF(Стимуляторы!$D$3:K3,\"Моториум бета\")+$AB$9-1)*$D$25,0)","v":0},{"$f":"IF(Стимуляторы!L3=\"Моториум бета\",0.5^(COUNTIF(Стимуляторы!$D$3:L3,\"Моториум бета\")+$AB$9-1)*$D$25,0)","v":0},{"$f":"IF(Стимуляторы!M3=\"Моториум бета\",0.5^(COUNTIF(Стимуляторы!$D$3:M3,\"Моториум бета\")+$AB$9-1)*$D$25,0)","v":0},{"$f":"COUNTIF(R10:AA10,\">0\")","v":0},null,null,null,null,null,null,null,null,null,null,null,0]
[null,null,null,null,null,null,null,null,null,null,null,null,null,null,null,"Моториум альфа М","ОД",{"$f":"IF(Стимуляторы!D3=\"Моториум альфа М\",0.5^(COUNTIF(Стимуляторы!$D$3,\"Моториум альфа М\")+AB10+AB9-1)*$D$32,0)","v":0},{"$f":"IF(Стимуляторы!E3=\"Моториум альфа М\",0.5^(COUNTIF(Стимуляторы!$D$3:E3,\"Моториум альфа М\")+$AB$9+$AB$10-1)*$D$32,0)","v":0},{"$f":"IF(Стимуляторы!F3=\"Моториум альфа М\",0.5^(COUNTIF(Стимуляторы!$D$3:F3,\"Моториум альфа М\")+$AB$9+$AB$10-1)*$D$32,0)","v":0},{"$f":"IF(Стимуляторы!G3=\"Моториум альфа М\",0.5^(COUNTIF(Стимуляторы!$D$3:G3,\"Моториум альфа М\")+$AB$9+$AB$10-1)*$D$32,0)","v":0},{"$f":"IF(Стимуляторы!H3=\"Моториум альфа М\",0.5^(COUNTIF(Стимуляторы!$D$3:H3,\"Моториум альфа М\")+$AB$9+$AB$10-1)*$D$32,0)","v":0},{"$f":"IF(Стимуляторы!I3=\"Моториум альфа М\",0.5^(COUNTIF(Стимуляторы!$D$3:I3,\"Моториум альфа М\")+$AB$9+$AB$10-1)*$D$32,0)","v":0},{"$f":"IF(Стимуляторы!J3=\"Моториум альфа М\",0.5^(COUNTIF(Стимуляторы!$D$3:J3,\"Моториум альфа М\")+$AB$9+$AB$10-1)*$D$32,0)","v":0},{"$f":"IF(Стимуляторы!K3=\"Моториум альфа М\",0.5^(COUNTIF(Стимуляторы!$D$3:K3,\"Моториум альфа М\")+$AB$9+$AB$10-1)*$D$32,0)","v":0},{"$f":"IF(Стимуляторы!L3=\"Моториум альфа М\",0.5^(COUNTIF(Стимуляторы!$D$3:L3,\"Моториум альфа М\")+$AB$9+$AB$10-1)*$D$32,0)","v":0},{"$f":"IF(Стимуляторы!M3=\"Моториум альфа М\",0.5^(COUNTIF(Стимуляторы!$D$3:M3,\"Моториум альфа М\")+$AB$9+$AB$10-1)*$D$32,0)","v":0},0,null,null,null,null,null,null,null,null,null,null,null,0]
[null,null,null,null,null,null,null,null,null,null,null,null,null,null,null,"Моториум бета М","ОД",{"$f":"IF(Стимуляторы!$D$3=\"Моториум бета М\",0.5^(COUNTIF(Стимуляторы!$D$3,\"Моториум бета М\")+AB9+AB10+AB11-1)*$D$39,0)","v":0},{"$f":"IF(Стимуляторы!E3=\"Моториум бета М\",0.5^(COUNTIF(Стимуляторы!$D$3:E3,\"Моториум бета М\")+$AB$9+$AB$10+$AB$11-1)*$D$39,0)","v":0},{"$f":"IF(Стимуляторы!F3=\"Моториум бета М\",0.5^(COUNTIF(Стимуляторы!$D$3:F3,\"Моториум бета М\")+$AB$9+$AB$10+$AB$11-1)*$D$39,0)","v":0},{"$f":"IF(Стимуляторы!G3=\"Моториум бета М\",0.5^(COUNTIF(Стимуляторы!$D$3:G3,\"Моториум бета М\")+$AB$9+$AB$10+$AB$11-1)*$D$39,0)","v":0},{"$f":"IF(Стимуляторы!H3=\"Моториум бета М\",0.5^(COUNTIF(Стимуляторы!$D$3:H3,\"Моториум бета М\")+$AB$9+$AB$10+$AB$11-1)*$D$39,0)","v":0},{"$f":"IF(Стимуляторы!I3=\"Моториум бета М\",0.5^(COUNTIF(Стимуляторы!$D$3:I3,\"Моториум бета М\")+$AB$9+$AB$10+$AB$11-1)*$D$39,0)","v":0},{"$f":"IF(Стимуляторы!J3=\"Моториум бета М\",0.5^(COUNTIF(Стимуляторы!$D$3:J3,\"Моториум бета М\")+$AB$9+$AB$10+$AB$11-1)*$D$39,0)","v":0},{"$f":"IF(Стимуляторы!K3=\"Моториум бета М\",0.5^(COUNTIF(Стимуляторы!$D$3:K3,\"Моториум бета М\")+$AB$9+$AB$10+$AB$11-1)*$D$39,0)","v":0},{"$f":"IF(Стимуляторы!L3=\"Моториум бета М\",0.5^(COUNTIF(Стимуляторы!$D$3:L3,\"Моториум бета М\")+$AB$9+$AB$10+$AB$11-1)*$D$39,0)","v":0},{"$f":"IF(Стимуляторы!M3=\"Моториум бета М\",0.5^(COUNTIF(Стимуляторы!$D$3:M3,\"Моториум бета М\")+$AB$9+$AB$10+$AB$11-1)*$D$39,0)","v":0},0,null,null,null,null,null,null,null,null,null,null,null,0]
[null,null,null,null,null,null,null,null,null,null,null,null,null,null,null,null,null,{"$f":"IF(Стимуляторы!D13=\"гемобуфер альфа\",0.5^(COUNTIF(Стимуляторы!D13,\"гемобуфер альфа\")+AB12-1)*$D$24,0)","v":0},{"$f":"IF(Стимуляторы!E12=\"гемобуфер бета\",0.5^(COUNTIF(Стимуляторы!D18:E18,\"Здоровье\")-1)*$D$24,0)","v":0},{"$f":"IF(Стимуляторы!F13=\"гемобуфер альфа\",0.5^(COUNTIF(Стимуляторы!D13:F14,\"гемобуфер альфа\")-1)*$D$17,0)","v":0},{"$f":"IF(Стимуляторы!G13=\"гемобуфер альфа\",0.5^(COUNTIF(Стимуляторы!D13:G14,\"гемобуфер альфа\")-1)*$D$17,0)","v":0},{"$f":"IF(Стимуляторы!H13=\"гемобуфер альфа\",0.5^(COUNTIF(Стимуляторы!D13:H14,\"гемобуфер альфа\")-1)*$D$17,0)","v":0},{"$f":"IF(Стимуляторы!I13=\"гемобуфер альфа\",0.5^(COUNTIF(Стимуляторы!D13:I14,\"гемобуфер альфа\")-1)*$D$17,0)","v":0},{"$f":"IF(Стимуляторы!J13=\"гемобуфер альфа\",0.5^(COUNTIF(Стимуляторы!D13:J14,\"гемобуфер альфа\")-1)*$D$17,0)","v":0},{"$f":"IF(Стимуляторы!K13=\"гемобуфер альфа\",0.5^(COUNTIF(Стимуляторы!D13:K14,\"гемобуфер альфа\")-1)*$D$17,0)","v":0},{"$f":"IF(Стимуляторы!L13=\"гемобуфер альфа\",0.5^(COUNTIF(Стимуляторы!D13:L14,\"гемобуфер альфа\")-1)*$D$17,0)","v":0},{"$f":"IF(Стимуляторы!M13=\"гемобуфер альфа\",0.5^(COUNTIF(Стимуляторы!D13:M14,\"гемобуфер альфа\")-1)*$D$17,0)","v":0},{"$f":"COUNTIF(R13:AA13,\">0\")","v":0}]
["название","Столбец2","Столбец3","базовое значение","Столбец5","Столбец6","Столбец7","Столбец8","Столбец9","Столбец10","Столбец11","Столбец12","Столбец13","Столбец14",null,"Перцептил альфа","Точность",{"$f":"IF(Стимуляторы!D3=\"Перцептил альфа\",0.5^(COUNTIF(Стимуляторы!$D$3,\"Перцептил альфа\")-1)*$D$19,0)","v":0},{"$f":"IF(Стимуляторы!E3=\"Перцептил альфа\",0.5^(COUNTIF(Стимуляторы!$D$3:E3,\"Перцептил альфа\")-1)*$D$19,0)","v":0},{"$f":"IF(Стимуляторы!F3=\"Перцептил альфа\",0.5^(COUNTIF(Стимуляторы!$D$3:F3,\"Перцептил альфа\")-1)*$D$19,0)","v":0},{"$f":"IF(Стимуляторы!G3=\"Перцептил альфа\",0.5^(COUNTIF(Стимуляторы!$D$3:G3,\"Перцептил альфа\")-1)*$D$19,0)","v":0},{"$f":"IF(Стимуляторы!H3=\"Перцептил альфа\",0.5^(COUNTIF(Стимуляторы!$D$3:H3,\"Перцептил альфа\")-1)*$D$19,0)","v":0.1},{"$f":"IF(Стимуляторы!I3=\"Перцептил альфа\",0.5^(COUNTIF(Стимуляторы!$D$3:I3,\"Перцептил альфа\")-1)*$D$19,0)","v":0},{"$f":"IF(Стимуляторы!J3=\"Перцептил альфа\",0.5^(COUNTIF(Стимуляторы!$D$3:J3,\"Перцептил альфа\")-1)*$D$19,0)","v":0},{"$f":"IF(Стимуляторы!K3=\"Перцептил альфа\",0.5^(COUNTIF(Стимуляторы!$D$3:K3,\"Перцептил альфа\")-1)*$D$19,0)","v":0},{"$f":"IF(Стимуляторы!L3=\"Перцептил альфа\",0.5^(COUNTIF(Стимуляторы!$D$3:L3,\"Перцептил альфа\")-1)*$D$19,0)","v":0.05},{"$f":"IF(Стимуляторы!M3=\"Перцептил альфа\",0.5^(COUNTIF(Стимуляторы!$D$3:M3,\"Перцептил альфа\")-1)*$D$19,0)","v":0},2,"Крит. Поп.",{"$f":"IF(Стимуляторы!D3=\"Перцептил альфа\",0.5^(COUNTIF(Стимуляторы!$D$3,\"Перцептил альфа\")-1)*$F$19,0)","v":0},{"$f":"IF(Стимуляторы!E3=\"Перцептил альфа\",0.5^(COUNTIF(Стимуляторы!$D$3:E3,\"Перцептил альфа\")-1)*$F$19,0)","v":0},{"$f":"IF(Стимуляторы!F3=\"Перцептил альфа\",0.5^(COUNTIF(Стимуляторы!$D$3:F3,\"Перцептил альфа\")-1)*$F$19,0)","v":0},{"$f":"IF(Стимуляторы!G3=\"Перцептил альфа\",0.5^(COUNTIF(Стимуляторы!$D$3:G3,\"Перцептил альфа\")-1)*$F$19,0)","v":0},{"$f":"IF(Стимуляторы!H3=\"Перцептил альфа\",0.5^(COUNTIF(Стимуляторы!$D$3:H3,\"Перцептил альфа\")-1)*$F$19,0)","v":0.1},{"$f":"IF(Стимуляторы!I3=\"Перцептил альфа\",0.5^(COUNTIF(Стимуляторы!$D$3:I3,\"Перцептил альфа\")-1)*$F$19,0)","v":0},{"$f":"IF(Стимуляторы!J3=\"Перцептил альфа\",0.5^(COUNTIF(Стимуляторы!$D$3:J3,\"Перцептил альфа\")-1)*$F$19,0)","v":0},{"$f":"IF(Стимуляторы!K3=\"Перцептил альфа\",0.5^(COUNTIF(Стимуляторы!$D$3:K3,\"Перцептил альфа\")-1)*$F$19,0)","v":0},{"$f":"IF(Стимуляторы!L3=\"Перцептил альфа\",0.5^(COUNTIF(Стимуляторы!$D$3:L3,\"Перцептил альфа\")-1)*$F$19,0)","v":0.05},{"$f":"IF(Стимуляторы!M3=\"Перцептил альфа\",0.5^(COUNTIF(Стимуляторы!$D$3:M3,\"Перцептил альфа\")-1)*$F$19,0)","v":0},2,"Эфф.боепр.",{"$f":"IF(Стимуляторы!D3=\"Перцептил альфа\",0.5^(COUNTIF(Стимуляторы!$D$3,\"Перцептил альфа\")-1)*$H$19,0)","v":0},{"$f":"IF(Стимуляторы!E3=\"Перцептил альфа\",0.5^(COUNTIF(Стимуляторы!$D$3:E3,\"Перцептил альфа\")-1)*$H$19,0)","v":0},{"$f":"IF(Стимуляторы!F3=\"Перцептил альфа\",0.5^(COUNTIF(Стимуляторы!$D$3:F3,\"Перцептил альфа\")-1)*$H$19,0)","v":0},{"$f":"IF(Стимуляторы!G3=\"Перцептил альфа\",0.5^(COUNTIF(Стимуляторы!$D$3:G3,\"Перцептил альфа\")-1)*$H$19,0)","v":0},{"$f":"IF(Стимуляторы!H3=\"Перцептил альфа\",0.5^(COUNTIF(Стимуляторы!$D$3:H3,\"Перцептил альфа\")-1)*$H$19,0)","v":0.1},{"$f":"IF(Стимуляторы!I3=\"Перцептил альфа\",0.5^(COUNTIF(Стимуляторы!$D$3:I3,\"Перцептил альфа\")-1)*$H$19,0)","v":0},{"$f":"IF(Стимуляторы!J3=\"Перцептил альфа\",0.5^(COUNTIF(Стимуляторы!$D$3:J3,\"Перцептил альфа\")-1)*$H$19,0)","v":0},{"$f":"IF(Стимуляторы!K3=\"Перцептил альфа\",0.5^(COUNTIF(Стимуляторы!$D$3:K3,\"Перцептил альфа\")-1)*$H$19,0)","v":0},{"$f":"IF(Стимуляторы!L3=\"Перцептил альфа\",0.5^(COUNTIF(Стимуляторы!$D$3:L3,\"Перцептил альфа\")-1)*$H$19,0)","v":0.05},{"$f":"IF(Стимуляторы!M3=\"Перцептил альфа\",0.5^(COUNTIF(Стимуляторы!$D$3:M3,\"Перцептил альфа\")-1)*$H$19,0)","v":0},{"$f":"COUNTIF(AP14:AY14,\">0\")","v":2}]
["Выберите стимулятор",null,null,null,null,null,null,null,null,null,null,null,null,null,null,"Перцептил бета","Точность",{"$f":"IF(Стимуляторы!$D$3=\"Перцептил бета\",0.5^(COUNTIF(Стимуляторы!$D$3,\"Перцептил бета\")+AB14-1)*$D$26,0)","v":0},{"$f":"IF(Стимуляторы!E3=\"Перцептил бета\",0.5^(COUNTIF(Стимуляторы!$D$3:E3,\"Перцептил бета\")+$AB$14-1)*$D$26,0)","v":0},{"$f":"IF(Стимуляторы!F3=\"Перцептил бета\",0.5^(COUNTIF(Стимуляторы!$D$3:F3,\"Перцептил бета\")+$AB$14-1)*$D$26,0)","v":0},{"$f":"IF(Стимуляторы!G3=\"Перцептил бета\",0.5^(COUNTIF(Стимуляторы!$D$3:G3,\"Перцептил бета\")+$AB$14-1)*$D$26,0)","v":0},{"$f":"IF(Стимуляторы!H3=\"Перцептил бета\",0.5^(COUNTIF(Стимуляторы!$D$3:H3,\"Перцептил бета\")+$AB$14-1)*$D$26,0)","v":0},{"$f":"IF(Стимуляторы!I3=\"Перцептил бета\",0.5^(COUNTIF(Стимуляторы!$D$3:I3,\"Перцептил бета\")+$AB$14-1)*$D$26,0)","v":0.03},{"$f":"IF(Стимуляторы!J3=\"Перцептил бета\",0.5^(COUNTIF(Стимуляторы!$D$3:J3,\"Перцептил бета\")+$AB$14-1)*$D$26,0)","v":0},{"$f":"IF(Стимуляторы!K3=\"Перцептил бета\",0.5^(COUNTIF(Стимуляторы!$D$3:K3,\"Перцептил бета\")+$AB$14-1)*$D$26,0)","v":0},{"$f":"IF(Стимуляторы!L3=\"Перцептил бета\",0.5^(COUNTIF(Стимуляторы!$D$3:L3,\"Перцептил бета\")+$AB$14-1)*$D$26,0)","v":0},{"$f":"IF(Стимуляторы!M3=\"Перцептил бета\",0.5^(COUNTIF(Стимуляторы!$D$3:M3,\"Перцептил бета\")+$AB$14-1)*$D$26,0)","v":1.4999999999999999E-2},2,"Крит. Поп.",{"$f":"IF(Стимуляторы!$D$3=\"Перцептил бета\",0.5^(COUNTIF(Стимуляторы!$D$3,\"Перцептил бета\")+AN14-1)*$F$26,0)","v":0},{"$f":"IF(Стимуляторы!E3=\"Перцептил бета\",0.5^(COUNTIF(Стимуляторы!$D$3:E3,\"Перцептил бета\")+$AN$14-1)*$F$26,0)","v":0},{"$f":"IF(Стимуляторы!F3=\"Перцептил бета\",0.5^(COUNTIF(Стимуляторы!$D$3:F3,\"Перцептил бета\")+$AN$14-1)*$F$26,0)","v":0},{"$f":"IF(Стимуляторы!G3=\"Перцептил бета\",0.5^(COUNTIF(Стимуляторы!$D$3:G3,\"Перцептил бета\")+$AN$14-1)*$F$26,0)","v":0},{"$f":"IF(Стимуляторы!H3=\"Перцептил бета\",0.5^(COUNTIF(Стимуляторы!$D$3:H3,\"Перцептил бета\")+$AN$14-1)*$F$26,0)","v":0},{"$f":"IF(Стимуляторы!I3=\"Перцептил бета\",0.5^(COUNTIF(Стимуляторы!$D$3:I3,\"Перцептил бета\")+$AN$14-1)*$F$26,0)","v":0.03},{"$f":"IF(Стимуляторы!J3=\"Перцептил бета\",0.5^(COUNTIF(Стимуляторы!$D$3:J3,\"Перцептил бета\")+$AN$14-1)*$F$26,0)","v":0},{"$f":"IF(Стимуляторы!K3=\"Перцептил бета\",0.5^(COUNTIF(Стимуляторы!$D$3:K3,\"Перцептил бета\")+$AN$14-1)*$F$26,0)","v":0},{"$f":"IF(Стимуляторы!L3=\"Перцептил бета\",0.5^(COUNTIF(Стимуляторы!$D$3:L3,\"Перцептил бета\")+$AN$14-1)*$F$26,0)","v":0},{"$f":"IF(Стимуляторы!M3=\"Перцептил бета\",0.5^(COUNTIF(Стимуляторы!$D$3:M3,\"Перцептил бета\")+$AN$14-1)*$F$26,0)","v":1.4999999999999999E-2},2,"Эфф.боепр.",{"$f":"IF(Стимуляторы!$D$3=\"Перцептил бета\",0.5^(COUNTIF(Стимуляторы!$D$3,\"Перцептил бета\")+AZ14-1)*$H$26,0)","v":0},{"$f":"IF(Стимуляторы!E3=\"Перцептил бета\",0.5^(COUNTIF(Стимуляторы!$D$3:E3,\"Перцептил бета\")+$AZ$14-1)*$H$26,0)","v":0},{"$f":"IF(Стимуляторы!F3=\"Перцептил бета\",0.5^(COUNTIF(Стимуляторы!$D$3:F3,\"Перцептил бета\")+$AZ$14-1)*$H$26,0)","v":0},{"$f":"IF(Стимуляторы!G3=\"Перцептил бета\",0.5^(COUNTIF(Стимуляторы!$D$3:G3,\"Перцептил бета\")+$AZ$14-1)*$H$26,0)","v":0},{"$f":"IF(Стимуляторы!H3=\"Перцептил бета\",0.5^(COUNTIF(Стимуляторы!$D$3:H3,\"Перцептил бета\")+$AZ$14-1)*$H$26,0)","v":0},{"$f":"IF(Стимуляторы!I3=\"Перцептил бета\",0.5^(COUNTIF(Стимуляторы!$D$3:I3,\"Перцептил бета\")+$AZ$14-1)*$H$26,0)","v":0.03},{"$f":"IF(Стимуляторы!J3=\"Перцептил бета\",0.5^(COUNTIF(Стимуляторы!$D$3:J3,\"Перцептил бета\")+$AZ$14-1)*$H$26,0)","v":0},{"$f":"IF(Стимуляторы!K3=\"Перцептил бета\",0.5^(COUNTIF(Стимуляторы!$D$3:K3,\"Перцептил бета\")+$AZ$14-1)*$H$26,0)","v":0},{"$f":"IF(Стимуляторы!L3=\"Перцептил бета\",0.5^(COUNTIF(Стимуляторы!$D$3:L3,\"Перцептил бета\")+$AZ$14-1)*$H$26,0)","v":0},{"$f":"IF(Стимуляторы!M3=\"Перцептил бета\",0.5^(COUNTIF(Стимуляторы!$D$3:M3,\"Перцептил бета\")+$AZ$14-1)*$H$26,0)","v":1.4999999999999999E-2},{"$f":"COUNTIF(AP15:AY15,\">0\")","v":2}]
[null,null,null,null,null,null,null,null,null,null,null,null,null,null,null,"Перцептил альфа М","Точность",{"$f":"IF(Стимуляторы!D3=\"Перцептил альфа М\",0.5^(COUNTIF(Стимуляторы!$D$3,\"Перцептил альфа М\")+AB14+AB15-1)*$D$33,0)","v":0},{"$f":"IF(Стимуляторы!E3=\"Перцептил альфа М\",0.5^(COUNTIF(Стимуляторы!$D$3:E3,\"Перцептил альфа М\")+$AB$14+$AB$15-1)*$D$33,0)","v":0},{"$f":"IF(Стимуляторы!F3=\"Перцептил альфа М\",0.5^(COUNTIF(Стимуляторы!$D$3:F3,\"Перцептил альфа М\")+$AB$14+$AB$15-1)*$D$33,0)","v":7.4999999999999997E-3},{"$f":"IF(Стимуляторы!G3=\"Перцептил альфа М\",0.5^(COUNTIF(Стимуляторы!$D$3:G3,\"Перцептил альфа М\")+$AB$14+$AB$15-1)*$D$33,0)","v":0},{"$f":"IF(Стимуляторы!H3=\"Перцептил альфа М\",0.5^(COUNTIF(Стимуляторы!$D$3:H3,\"Перцептил альфа М\")+$AB$14+$AB$15-1)*$D$33,0)","v":0},{"$f":"IF(Стимуляторы!I3=\"Перцептил альфа М\",0.5^(COUNTIF(Стимуляторы!$D$3:I3,\"Перцептил альфа М\")+$AB$14+$AB$15-1)*$D$33,0)","v":0},{"$f":"IF(Стимуляторы!J3=\"Перцептил альфа М\",0.5^(COUNTIF(Стимуляторы!$D$3:J3,\"Перцептил альфа М\")+$AB$14+$AB$15-1)*$D$33,0)","v":3.7499999999999999E-3},{"$f":"IF(Стимуляторы!K3=\"Перцептил альфа М\",0.5^(COUNTIF(Стимуляторы!$D$3:K3,\"Перцептил альфа М\")+$AB$14+$AB$15-1)*$D$33,0)","v":0},{"$f":"IF(Стимуляторы!L3=\"Перцептил альфа М\",0.5^(COUNTIF(Стимуляторы!$D$3:L3,\"Перцептил альфа М\")+$AB$14+$AB$15-1)*$D$33,0)","v":0},{"$f":"IF(Стимуляторы!M3=\"Перцептил альфа М\",0.5^(COUNTIF(Стимуляторы!$D$3:M3,\"Перцептил альфа М\")+$AB$14+$AB$15-1)*$D$33,0)","v":0},2,"Крит. Поп.",{"$f":"IF(Стимуляторы!D3=\"Перцептил альфа М\",0.5^(COUNTIF(Стимуляторы!$D$3,\"Перцептил альфа М\")+AN14+AN15-1)*$F$33,0)","v":0},{"$f":"IF(Стимуляторы!E3=\"Перцептил альфа М\",0.5^(COUNTIF(Стимуляторы!$D$3:E3,\"Перцептил альфа М\")+$AN$14+$AN$15-1)*$F$33,0)","v":0},{"$f":"IF(Стимуляторы!F3=\"Перцептил альфа М\",0.5^(COUNTIF(Стимуляторы!$D$3:F3,\"Перцептил альфа М\")+$AN$14+$AN$15-1)*$F$33,0)","v":7.4999999999999997E-3},{"$f":"IF(Стимуляторы!G3=\"Перцептил альфа М\",0.5^(COUNTIF(Стимуляторы!$D$3:G3,\"Перцептил альфа М\")+$AN$14+$AN$15-1)*$F$33,0)","v":0},{"$f":"IF(Стимуляторы!H3=\"Перцептил альфа М\",0.5^(COUNTIF(Стимуляторы!$D$3:H3,\"Перцептил альфа М\")+$AN$14+$AN$15-1)*$F$33,0)","v":0},{"$f":"IF(Стимуляторы!I3=\"Перцептил альфа М\",0.5^(COUNTIF(Стимуляторы!$D$3:I3,\"Перцептил альфа М\")+$AN$14+$AN$15-1)*$F$33,0)","v":0},{"$f":"IF(Стимуляторы!J3=\"Перцептил альфа М\",0.5^(COUNTIF(Стимуляторы!$D$3:J3,\"Перцептил альфа М\")+$AN$14+$AN$15-1)*$F$33,0)","v":3.7499999999999999E-3},{"$f":"IF(Стимуляторы!K3=\"Перцептил альфа М\",0.5^(COUNTIF(Стимуляторы!$D$3:K3,\"Перцептил альфа М\")+$AN$14+$AN$15-1)*$F$33,0)","v":0},{"$f":"IF(Стимуляторы!L3=\"Перцептил альфа М\",0.5^(COUNTIF(Стимуляторы!$D$3:L3,\"Перцептил альфа М\")+$AN$14+$AN$15-1)*$F$33,0)","v":0},{"$f":"IF(Стимуляторы!M3=\"Перцептил альфа М\",0.5^(COUNTIF(Стимуляторы!$D$3:M3,\"Перцептил альфа М\")+$AN$14+$AN$15-1)*$F$33,0)","v":0},2,"Эфф.боепр.",{"$f":"IF(Стимуляторы!D3=\"Перцептил альфа М\",0.5^(COUNTIF(Стимуляторы!$D$3,\"Перцептил альфа М\")+AZ14+AZ15-1)*$H$33,0)","v":0},{"$f":"IF(Стимуляторы!E3=\"Перцептил альфа М\",0.5^(COUNTIF(Стимуляторы!$D$3:E3,\"Перцептил альфа М\")+$AZ$14+$AZ$15-1)*$H$33,0)","v":0},{"$f":"IF(Стимуляторы!F3=\"Перцептил альфа М\",0.5^(COUNTIF(Стимуляторы!$D$3:F3,\"Перцептил альфа М\")+$AZ$14+$AZ$15-1)*$H$33,0)","v":7.4999999999999997E-3},{"$f":"IF(Стимуляторы!G3=\"Перцептил альфа М\",0.5^(COUNTIF(Стимуляторы!$D$3:G3,\"Перцептил альфа М\")+$AZ$14+$AZ$15-1)*$H$33,0)","v":0},{"$f":"IF(Стимуляторы!H3=\"Перцептил альфа М\",0.5^(COUNTIF(Стимуляторы!$D$3:H3,\"Перцептил альфа М\")+$AZ$14+$AZ$15-1)*$H$33,0)","v":0},{"$f":"IF(Стимуляторы!I3=\"Перцептил альфа М\",0.5^(COUNTIF(Стимуляторы!$D$3:I3,\"Перцептил альфа М\")+$AZ$14+$AZ$15-1)*$H$33,0)","v":0},{"$f":"IF(Стимуляторы!J3=\"Перцептил альфа М\",0.5^(COUNTIF(Стимуляторы!$D$3:J3,\"Перцептил альфа М\")+$AZ$14+$AZ$15-1)*$H$33,0)","v":3.7499999999999999E-3},{"$f":"IF(Стимуляторы!K3=\"Перцептил альфа М\",0.5^(COUNTIF(Стимуляторы!$D$3:K3,\"Перцептил альфа М\")+$AZ$14+$AZ$15-1)*$H$33,0)","v":0},{"$f":"IF(Стимуляторы!L3=\"Перцептил альфа М\",0.5^(COUNTIF(Стимуляторы!$D$3:L3,\"Перцептил альфа М\")+$AZ$14+$AZ$15-1)*$H$33,0)","v":0},{"$f":"IF(Стимуляторы!M3=\"Перцептил альфа М\",0.5^(COUNTIF(Стимуляторы!$D$3:M3,\"Перцептил альфа М\")+$AZ$14+$AZ$15-1)*$H$33,0)","v":0},2]
["Гемобуфер Альфа",null,"Здоровье",0.16,"Сопр. эфф.",25,null,null,null,null,null,null,"токсичность",5,null,"Перцептил бета М","Точность",{"$f":"IF(Стимуляторы!$D$3=\"Перцептил бета М\",0.5^(COUNTIF(Стимуляторы!$D$3,\"Перцептил бета М\")+AB14+AB15+AB16-1)*$D$40,0)","v":0},{"$f":"IF(Стимуляторы!E3=\"Перцептил бета М\",0.5^(COUNTIF(Стимуляторы!$D$3:E3,\"Перцептил бета М\")+$AB$14+$AB$15+$AB$16-1)*$D$40,0)","v":2.1875000000000002E-3},{"$f":"IF(Стимуляторы!F3=\"Перцептил бета М\",0.5^(COUNTIF(Стимуляторы!$D$3:F3,\"Перцептил бета М\")+$AB$14+$AB$15+$AB$16-1)*$D$40,0)","v":0},{"$f":"IF(Стимуляторы!G3=\"Перцептил бета М\",0.5^(COUNTIF(Стимуляторы!$D$3:G3,\"Перцептил бета М\")+$AB$14+$AB$15+$AB$16-1)*$D$40,0)","v":1.0937500000000001E-3},{"$f":"IF(Стимуляторы!H3=\"Перцептил бета М\",0.5^(COUNTIF(Стимуляторы!$D$3:H3,\"Перцептил бета М\")+$AB$14+$AB$15+$AB$16-1)*$D$40,0)","v":0},{"$f":"IF(Стимуляторы!I3=\"Перцептил бета М\",0.5^(COUNTIF(Стимуляторы!$D$3:I3,\"Перцептил бета М\")+$AB$14+$AB$15+$AB$16-1)*$D$40,0)","v":0},{"$f":"IF(Стимуляторы!J3=\"Перцептил бета М\",0.5^(COUNTIF(Стимуляторы!$D$3:J3,\"Перцептил бета М\")+$AB$14+$AB$15+$AB$16-1)*$D$40,0)","v":0},{"$f":"IF(Стимуляторы!K3=\"Перцептил бета М\",0.5^(COUNTIF(Стимуляторы!$D$3:K3,\"Перцептил бета М\")+$AB$14+$AB$15+$AB$16-1)*$D$40,0)","v":5.4687500000000005E-4},{"$f":"IF(Стимуляторы!L3=\"Перцептил бета М\",0.5^(COUNTIF(Стимуляторы!$D$3:L3,\"Перцептил бета М\")+$AB$14+$AB$15+$AB$16-1)*$D$40,0)","v":0},{"$f":"IF(Стимуляторы!M3=\"Перцептил бета М\",0.5^(COUNTIF(Стимуляторы!$D$3:M3,\"Перцептил бета М\")+$AB$14+$AB$15+$AB$16-1)*$D$40,0)","v":0},3,"Крит. Поп.",{"$f":"IF(Стимуляторы!$D$3=\"Перцептил бета М\",0.5^(COUNTIF(Стимуляторы!$D$3,\"Перцептил бета М\")+AN14+AN15+AN16-1)*$F$40,0)","v":0},{"$f":"IF(Стимуляторы!E3=\"Перцептил бета М\",0.5^(COUNTIF(Стимуляторы!$D$3:E3,\"Перцептил бета М\")+$AN$14+$AN$15+$AN$16-1)*$F$40,0)","v":2.1875000000000002E-3},{"$f":"IF(Стимуляторы!F3=\"Перцептил бета М\",0.5^(COUNTIF(Стимуляторы!$D$3:F3,\"Перцептил бета М\")+$AN$14+$AN$15+$AN$16-1)*$F$40,0)","v":0},{"$f":"IF(Стимуляторы!G3=\"Перцептил бета М\",0.5^(COUNTIF(Стимуляторы!$D$3:G3,\"Перцептил бета М\")+$AN$14+$AN$15+$AN$16-1)*$F$40,0)","v":1.0937500000000001E-3},{"$f":"IF(Стимуляторы!H3=\"Перцептил бета М\",0.5^(COUNTIF(Стимуляторы!$D$3:H3,\"Перцептил бета М\")+$AN$14+$AN$15+$AN$16-1)*$F$40,0)","v":0},{"$f":"IF(Стимуляторы!I3=\"Перцептил бета М\",0.5^(COUNTIF(Стимуляторы!$D$3:I3,\"Перцептил бета М\")+$AN$14+$AN$15+$AN$16-1)*$F$40,0)","v":0},{"$f":"IF(Стимуляторы!J3=\"Перцептил бета М\",0.5^(COUNTIF(Стимуляторы!$D$3:J3,\"Перцептил бета М\")+$AN$14+$AN$15+$AN$16-1)*$F$40,0)","v":0},{"$f":"IF(Стимуляторы!K3=\"Перцептил бета М\",0.5^(COUNTIF(Стимуляторы!$D$3:K3,\"Перцептил бета М\")+$AN$14+$AN$15+$AN$16-1)*$F$40,0)","v":5.4687500000000005E-4},{"$f":"IF(Стимуляторы!L3=\"Перцептил бета М\",0.5^(COUNTIF(Стимуляторы!$D$3:L3,\"Перцептил бета М\")+$AN$14+$AN$15+$AN$16-1)*$F$40,0)","v":0},{"$f":"IF(Стимуляторы!M3=\"Перцептил бета М\",0.5^(COUNTIF(Стимуляторы!$D$3:M3,\"Перцептил бета М\")+$AN$14+$AN$15+$AN$16-1)*$F$40,0)","v":0},3,"Эфф.боепр.",{"$f":"IF(Стимуляторы!$D$3=\"Перцептил бета М\",0.5^(COUNTIF(Стимуляторы!$D$3,\"Перцептил бета М\")+AZ14+AZ15+AZ16-1)*$H$40,0)","v":0},{"$f":"IF(Стимуляторы!E3=\"Перцептил бета М\",0.5^(COUNTIF(Стимуляторы!$D$3:E3,\"Перцептил бета М\")+$AZ$14+$AZ$15+$AZ$16-1)*$H$40,0)","v":2.1875000000000002E-3},{"$f":"IF(Стимуляторы!F3=\"Перцептил бета М\",0.5^(COUNTIF(Стимуляторы!$D$3:F3,\"Перцептил бета М\")+$AZ$14+$AZ$15+$AZ$16-1)*$H$40,0)","v":0},{"$f":"IF(Стимуляторы!G3=\"Перцептил бета М\",0.5^(COUNTIF(Стимуляторы!$D$3:G3,\"Перцептил бета М\")+$AZ$14+$AZ$15+$AZ$16-1)*$H$40,0)","v":1.0937500000000001E-3},{"$f":"IF(Стимуляторы!H3=\"Перцептил бета М\",0.5^(COUNTIF(Стимуляторы!$D$3:H3,\"Перцептил бета М\")+$AZ$14+$AZ$15+$AZ$16-1)*$H$40,0)","v":0},{"$f":"IF(Стимуляторы!I3=\"Перцептил бета М\",0.5^(COUNTIF(Стимуляторы!$D$3:I3,\"Перцептил бета М\")+$AZ$14+$AZ$15+$AZ$16-1)*$H$40,0)","v":0},{"$f":"IF(Стимуляторы!J3=\"Перцептил бета М\",0.5^(COUNTIF(Стимуляторы!$D$3:J3,\"Перцептил бета М\")+$AZ$14+$AZ$15+$AZ$16-1)*$H$40,0)","v":0},{"$f":"IF(Стимуляторы!K3=\"Перцептил бета М\",0.5^(COUNTIF(Стимуляторы!$D$3:K3,\"Перцептил бета М\")+$AZ$14+$AZ$15+$AZ$16-1)*$H$40,0)","v":5.4687500000000005E-4},{"$f":"IF(Стимуляторы!L3=\"Перцептил бета М\",0.5^(COUNTIF(Стимуляторы!$D$3:L3,\"Перцептил бета М\")+$AZ$14+$AZ$15+$AZ$16-1)*$H$40,0)","v":0},{"$f":"IF(Стимуляторы!M3=\"Перцептил бета М\",0.5^(COUNTIF(Стимуляторы!$D$3:M3,\"Перцептил бета М\")+$AZ$14+$AZ$15+$AZ$16-1)*$H$40,0)","v":0},3]
["Моториум альфа",null,"ОД",0.1,null,null,null,null,null,null,null,null,"токсичность",5,null,null,null,{"$f":"IF(Стимуляторы!D18=\"гемобуфер альфа\",0.5^(COUNTIF(Стимуляторы!D18,\"гемобуфер альфа\")+AB17-1)*$D$24,0)","v":0},{"$f":"IF(Стимуляторы!E17=\"гемобуфер бета\",0.5^(COUNTIF(Стимуляторы!D23:E23,\"Здоровье\")-1)*$D$24,0)","v":0},{"$f":"IF(Стимуляторы!F18=\"гемобуфер альфа\",0.5^(COUNTIF(Стимуляторы!D18:F19,\"гемобуфер альфа\")-1)*$D$17,0)","v":0},{"$f":"IF(Стимуляторы!G18=\"гемобуфер альфа\",0.5^(COUNTIF(Стимуляторы!D18:G19,\"гемобуфер альфа\")-1)*$D$17,0)","v":0},{"$f":"IF(Стимуляторы!H18=\"гемобуфер альфа\",0.5^(COUNTIF(Стимуляторы!D18:H19,\"гемобуфер альфа\")-1)*$D$17,0)","v":0},{"$f":"IF(Стимуляторы!I18=\"гемобуфер альфа\",0.5^(COUNTIF(Стимуляторы!D18:I19,\"гемобуфер альфа\")-1)*$D$17,0)","v":0},{"$f":"IF(Стимуляторы!J18=\"гемобуфер альфа\",0.5^(COUNTIF(Стимуляторы!D18:J19,\"гемобуфер альфа\")-1)*$D$17,0)","v":0},{"$f":"IF(Стимуляторы!K18=\"гемобуфер альфа\",0.5^(COUNTIF(Стимуляторы!D18:K19,\"гемобуфер альфа\")-1)*$D$17,0)","v":0},{"$f":"IF(Стимуляторы!L18=\"гемобуфер альфа\",0.5^(COUNTIF(Стимуляторы!D18:L19,\"гемобуфер альфа\")-1)*$D$17,0)","v":0},{"$f":"IF(Стимуляторы!M18=\"гемобуфер альфа\",0.5^(COUNTIF(Стимуляторы!D18:M19,\"гемобуфер альфа\")-1)*$D$17,0)","v":0},{"$f":"COUNTIF(R18:AA18,\">0\")","v":0}]
["Перцептил альфа",null,"Точность",0.1,"Крит. поп. ",0.1,"Эфф.боепр.",0.1,null,null,null,null,"токсичность",5,null,"Рекуперант альфа","регенирация",{"$f":"IF(Стимуляторы!D3=\"Рекуперант альфа\",0.5^(COUNTIF(Стимуляторы!$D$3,\"Рекуперант альфа\")-1)*$D$20,0)","v":0},{"$f":"IF(Стимуляторы!E3=\"Рекуперант альфа\",0.5^(COUNTIF(Стимуляторы!$D$3:E3,\"Рекуперант альфа\")-1)*$D$20,0)","v":0},{"$f":"IF(Стимуляторы!F3=\"Рекуперант альфа\",0.5^(COUNTIF(Стимуляторы!$D$3:F3,\"Рекуперант альфа\")-1)*$D$20,0)","v":0},{"$f":"IF(Стимуляторы!G3=\"Рекуперант альфа\",0.5^(COUNTIF(Стимуляторы!$D$3:G3,\"Рекуперант альфа\")-1)*$D$20,0)","v":0},{"$f":"IF(Стимуляторы!H3=\"Рекуперант альфа\",0.5^(COUNTIF(Стимуляторы!$D$3:H3,\"Рекуперант альфа\")-1)*$D$20,0)","v":0},{"$f":"IF(Стимуляторы!I3=\"Рекуперант альфа\",0.5^(COUNTIF(Стимуляторы!$D$3:I3,\"Рекуперант альфа\")-1)*$D$20,0)","v":0},{"$f":"IF(Стимуляторы!J3=\"Рекуперант альфа\",0.5^(COUNTIF(Стимуляторы!$D$3:J3,\"Рекуперант альфа\")-1)*$D$20,0)","v":0},{"$f":"IF(Стимуляторы!K3=\"Рекуперант альфа\",0.5^(COUNTIF(Стимуляторы!$D$3:K3,\"Рекуперант альфа\")-1)*$D$20,0)","v":0},{"$f":"IF(Стимуляторы!L3=\"Рекуперант альфа\",0.5^(COUNTIF(Стимуляторы!$D$3:L3,\"Рекуперант альфа\")-1)*$D$20,0)","v":0},{"$f":"IF(Стимуляторы!M3=\"Рекуперант альфа\",0.5^(COUNTIF(Стимуляторы!$D$3:M3,\"Рекуперант альфа\")-1)*$D$20,0)","v":0},0,"Вост. эфф.",{"$f":"IF(Стимуляторы!D3=\"Рекуперант альфа\",0.5^(COUNTIF(Стимуляторы!$D$3,\"Рекуперант альфа\")-1)*$F$20,0)","v":0},{"$f":"IF(Стимуляторы!E3=\"Рекуперант альфа\",0.5^(COUNTIF(Стимуляторы!$D$3:E3,\"Рекуперант альфа\")-1)*$F$20,0)","v":0},{"$f":"IF(Стимуляторы!F3=\"Рекуперант альфа\",0.5^(COUNTIF(Стимуляторы!$D$3:F3,\"Рекуперант альфа\")-1)*$F$20,0)","v":0},{"$f":"IF(Стимуляторы!G3=\"Рекуперант альфа\",0.5^(COUNTIF(Стимуляторы!$D$3:G3,\"Рекуперант альфа\")-1)*$F$20,0)","v":0},{"$f":"IF(Стимуляторы!H3=\"Рекуперант альфа\",0.5^(COUNTIF(Стимуляторы!$D$3:H3,\"Рекуперант альфа\")-1)*$F$20,0)","v":0},{"$f":"IF(Стимуляторы!I3=\"Рекуперант альфа\",0.5^(COUNTIF(Стимуляторы!$D$3:I3,\"Рекуперант альфа\")-1)*$F$20,0)","v":0},{"$f":"IF(Стимуляторы!J3=\"Рекуперант альфа\",0.5^(COUNTIF(Стимуляторы!$D$3:J3,\"Рекуперант альфа\")-1)*$F$20,0)","v":0},{"$f":"IF(Стимуляторы!K3=\"Рекуперант альфа\",0.5^(COUNTIF(Стимуляторы!$D$3:K3,\"Рекуперант альфа\")-1)*$F$20,0)","v":0},{"$f":"IF(Стимуляторы!L3=\"Рекуперант альфа\",0.5^(COUNTIF(Стимуляторы!$D$3:L3,\"Рекуперант альфа\")-1)*$F$20,0)","v":0},{"$f":"IF(Стимуляторы!M3=\"Рекуперант альфа\",0.5^(COUNTIF(Стимуляторы!$D$3:M3,\"Рекуперант альфа\")-1)*$F$20,0)","v":0},{"$f":"COUNTIF(AD19:AM19,\">0\")","v":0}]
["Рекуперант альфа",null,"Регенирация",{"$f":"9.9%","v":9.9000000000000005E-2},"Вост. эфф.",7,null,null,null,null,null,null,"токсичность",5,null,"Рекуперант бета","регенирация",{"$f":"IF(Стимуляторы!$D$3=\"Рекуперант бета\",0.5^(COUNTIF(Стимуляторы!$D$3,\"Рекуперант бета\")+AB19-1)*$D$27,0)","v":0},{"$f":"IF(Стимуляторы!E3=\"Рекуперант бета\",0.5^(COUNTIF(Стимуляторы!$D$3:E3,\"Рекуперант бета\")+$AB$19-1)*$D$27,0)","v":0},{"$f":"IF(Стимуляторы!F3=\"Рекуперант бета\",0.5^(COUNTIF(Стимуляторы!$D$3:F3,\"Рекуперант бета\")+$AB$19-1)*$D$27,0)","v":0},{"$f":"IF(Стимуляторы!G3=\"Рекуперант бета\",0.5^(COUNTIF(Стимуляторы!$D$3:G3,\"Рекуперант бета\")+$AB$19-1)*$D$27,0)","v":0},{"$f":"IF(Стимуляторы!H3=\"Рекуперант бета\",0.5^(COUNTIF(Стимуляторы!$D$3:H3,\"Рекуперант бета\")+$AB$19-1)*$D$27,0)","v":0},{"$f":"IF(Стимуляторы!I3=\"Рекуперант бета\",0.5^(COUNTIF(Стимуляторы!$D$3:I3,\"Рекуперант бета\")+$AB$19-1)*$D$27,0)","v":0},{"$f":"IF(Стимуляторы!J3=\"Рекуперант бета\",0.5^(COUNTIF(Стимуляторы!$D$3:J3,\"Рекуперант бета\")+$AB$19-1)*$D$27,0)","v":0},{"$f":"IF(Стимуляторы!K3=\"Рекуперант бета\",0.5^(COUNTIF(Стимуляторы!$D$3:K3,\"Рекуперант бета\")+$AB$19-1)*$D$27,0)","v":0},{"$f":"IF(Стимуляторы!L3=\"Рекуперант бета\",0.5^(COUNTIF(Стимуляторы!$D$3:L3,\"Рекуперант бета\")+$AB$19-1)*$D$27,0)","v":0},{"$f":"IF(Стимуляторы!M3=\"Рекуперант бета\",0.5^(COUNTIF(Стимуляторы!$D$3:M3,\"Рекуперант бета\")+$AB$19-1)*$D$27,0)","v":0},0,"Вост. эфф.",{"$f":"IF(Стимуляторы!$D$3=\"Рекуперант бета\",0.5^(COUNTIF(Стимуляторы!$D$3,\"Рекуперант бета\")+AN19-1)*$F$27,0)","v":0},{"$f":"IF(Стимуляторы!E3=\"Рекуперант бета\",0.5^(COUNTIF(Стимуляторы!$D$3:E3,\"Рекуперант бета\")+$AN$19-1)*$F$27,0)","v":0},{"$f":"IF(Стимуляторы!F3=\"Рекуперант бета\",0.5^(COUNTIF(Стимуляторы!$D$3:F3,\"Рекуперант бета\")+$AN$19-1)*$F$27,0)","v":0},{"$f":"IF(Стимуляторы!G3=\"Рекуперант бета\",0.5^(COUNTIF(Стимуляторы!$D$3:G3,\"Рекуперант бета\")+$AN$19-1)*$F$27,0)","v":0},{"$f":"IF(Стимуляторы!H3=\"Рекуперант бета\",0.5^(COUNTIF(Стимуляторы!$D$3:H3,\"Рекуперант бета\")+$AN$19-1)*$F$27,0)","v":0},{"$f":"IF(Стимуляторы!I3=\"Рекуперант бета\",0.5^(COUNTIF(Стимуляторы!$D$3:I3,\"Рекуперант бета\")+$AN$19-1)*$F$27,0)","v":0},{"$f":"IF(Стимуляторы!J3=\"Рекуперант бета\",0.5^(COUNTIF(Стимуляторы!$D$3:J3,\"Рекуперант бета\")+$AN$19-1)*$F$27,0)","v":0},{"$f":"IF(Стимуляторы!K3=\"Рекуперант бета\",0.5^(COUNTIF(Стимуляторы!$D$3:K3,\"Рекуперант бета\")+$AN$19-1)*$F$27,0)","v":0},{"$f":"IF(Стимуляторы!L3=\"Рекуперант бета\",0.5^(COUNTIF(Стимуляторы!$D$3:L3,\"Рекуперант бета\")+$AN$19-1)*$F$27,0)","v":0},{"$f":"IF(Стимуляторы!M3=\"Рекуперант бета\",0.5^(COUNTIF(Стимуляторы!$D$3:M3,\"Рекуперант бета\")+$AN$19-1)*$F$27,0)","v":0},{"$f":"COUNTIF(AD20:AM20,\">0\")","v":0}]
["Репульсин альфа",null,"Сниж. урона",0.05,"Крит.защита",12,null,null,null,null,null,null,"токсичность",5,null,"Рекуперант альфа М","регенирация",{"$f":"IF(Стимуляторы!D3=\"Рекуперант альфа М\",0.5^(COUNTIF(Стимуляторы!$D$3,\"Рекуперант альфа М\")+AB19+AB20-1)*$D$34,0)","v":0.11},{"$f":"IF(Стимуляторы!E3=\"Рекуперант альфа М\",0.5^(COUNTIF(Стимуляторы!$D$3:E3,\"Рекуперант альфа М\")+$AB$19+$AB$20-1)*$D$34,0)","v":0},{"$f":"IF(Стимуляторы!F3=\"Рекуперант альфа М\",0.5^(COUNTIF(Стимуляторы!$D$3:F3,\"Рекуперант альфа М\")+$AB$19+$AB$20-1)*$D$34,0)","v":0},{"$f":"IF(Стимуляторы!G3=\"Рекуперант альфа М\",0.5^(COUNTIF(Стимуляторы!$D$3:G3,\"Рекуперант альфа М\")+$AB$19+$AB$20-1)*$D$34,0)","v":0},{"$f":"IF(Стимуляторы!H3=\"Рекуперант альфа М\",0.5^(COUNTIF(Стимуляторы!$D$3:H3,\"Рекуперант альфа М\")+$AB$19+$AB$20-1)*$D$34,0)","v":0},{"$f":"IF(Стимуляторы!I3=\"Рекуперант альфа М\",0.5^(COUNTIF(Стимуляторы!$D$3:I3,\"Рекуперант альфа М\")+$AB$19+$AB$20-1)*$D$34,0)","v":0},{"$f":"IF(Стимуляторы!J3=\"Рекуперант альфа М\",0.5^(COUNTIF(Стимуляторы!$D$3:J3,\"Рекуперант альфа М\")+$AB$19+$AB$20-1)*$D$34,0)","v":0},{"$f":"IF(Стимуляторы!K3=\"Рекуперант альфа М\",0.5^(COUNTIF(Стимуляторы!$D$3:K3,\"Рекуперант альфа М\")+$AB$19+$AB$20-1)*$D$34,0)","v":0},{"$f":"IF(Стимуляторы!L3=\"Рекуперант альфа М\",0.5^(COUNTIF(Стимуляторы!$D$3:L3,\"Рекуперант альфа М\")+$AB$19+$AB$20-1)*$D$34,0)","v":0},{"$f":"IF(Стимуляторы!M3=\"Рекуперант альфа М\",0.5^(COUNTIF(Стимуляторы!$D$3:M3,\"Рекуперант альфа М\")+$AB$19+$AB$20-1)*$D$34,0)","v":0},1,"Вост. эфф.",{"$f":"IF(Стимуляторы!D3=\"Рекуперант альфа М\",0.5^(COUNTIF(Стимуляторы!$D$3,\"Рекуперант альфа М\")+AN19+AN20-1)*$F$34,0)","v":8},{"$f":"IF(Стимуляторы!E3=\"Рекуперант альфа М\",0.5^(COUNTIF(Стимуляторы!$D$3:E3,\"Рекуперант альфа М\")+$AN$19+$AN$20-1)*$F$34,0)","v":0},{"$f":"IF(Стимуляторы!F3=\"Рекуперант альфа М\",0.5^(COUNTIF(Стимуляторы!$D$3:F3,\"Рекуперант альфа М\")+$AN$19+$AN$20-1)*$F$34,0)","v":0},{"$f":"IF(Стимуляторы!G3=\"Рекуперант альфа М\",0.5^(COUNTIF(Стимуляторы!$D$3:G3,\"Рекуперант альфа М\")+$AN$19+$AN$20-1)*$F$34,0)","v":0},{"$f":"IF(Стимуляторы!H3=\"Рекуперант альфа М\",0.5^(COUNTIF(Стимуляторы!$D$3:H3,\"Рекуперант альфа М\")+$AN$19+$AN$20-1)*$F$34,0)","v":0},{"$f":"IF(Стимуляторы!I3=\"Рекуперант альфа М\",0.5^(COUNTIF(Стимуляторы!$D$3:I3,\"Рекуперант альфа М\")+$AN$19+$AN$20-1)*$F$34,0)","v":0},{"$f":"IF(Стимуляторы!J3=\"Рекуперант альфа М\",0.5^(COUNTIF(Стимуляторы!$D$3:J3,\"Рекуперант альфа М\")+$AN$19+$AN$20-1)*$F$34,0)","v":0},{"$f":"IF(Стимуляторы!K3=\"Рекуперант альфа М\",0.5^(COUNTIF(Стимуляторы!$D$3:K3,\"Рекуперант альфа М\")+$AN$19+$AN$20-1)*$F$34,0)","v":0},{"$f":"IF(Стимуляторы!L3=\"Рекуперант альфа М\",0.5^(COUNTIF(Стимуляторы!$D$3:L3,\"Рекуперант альфа М\")+$AN$19+$AN$20-1)*$F$34,0)","v":0},{"$f":"IF(Стимуляторы!M3=\"Рекуперант альфа М\",0.5^(COUNTIF(Стимуляторы!$D$3:M3,\"Рекуперант альфа М\")+$AN$19+$AN$20-1)*$F$34,0)","v":0},1]
["Фервепост альфа",null,"Урон",0.1,null,null,null,null,null,null,null,null,"токсичность",5,null,"Рекуперант бета М","регенирация",{"$f":"IF(Стимуляторы!$D$3=\"Рекуперант бета М\",0.5^(COUNTIF(Стимуляторы!$D$3,\"Рекуперант бета М\")+AB19+AB20+AB21-1)*$D$41,0)","v":0},{"$f":"IF(Стимуляторы!E3=\"Рекуперант бета М\",0.5^(COUNTIF(Стимуляторы!$D$3:E3,\"Рекуперант бета М\")+$AB$19+$AB$20+$AB$21-1)*$D$41,0)","v":0},{"$f":"IF(Стимуляторы!F3=\"Рекуперант бета М\",0.5^(COUNTIF(Стимуляторы!$D$3:F3,\"Рекуперант бета М\")+$AB$19+$AB$20+$AB$21-1)*$D$40,0)","v":0},{"$f":"IF(Стимуляторы!G3=\"Рекуперант бета М\",0.5^(COUNTIF(Стимуляторы!$D$3:G3,\"Рекуперант бета М\")+$AB$19+$AB$20+$AB$21-1)*$D$40,0)","v":0},{"$f":"IF(Стимуляторы!H3=\"Рекуперант бета М\",0.5^(COUNTIF(Стимуляторы!$D$3:H3,\"Рекуперант бета М\")+$AB$19+$AB$20+$AB$21-1)*$D$40,0)","v":0},{"$f":"IF(Стимуляторы!I3=\"Рекуперант бета М\",0.5^(COUNTIF(Стимуляторы!$D$3:I3,\"Рекуперант бета М\")+$AB$19+$AB$20+$AB$21-1)*$D$40,0)","v":0},{"$f":"IF(Стимуляторы!J3=\"Рекуперант бета М\",0.5^(COUNTIF(Стимуляторы!$D$3:J3,\"Рекуперант бета М\")+$AB$19+$AB$20+$AB$21-1)*$D$40,0)","v":0},{"$f":"IF(Стимуляторы!K3=\"Рекуперант бета М\",0.5^(COUNTIF(Стимуляторы!$D$3:K3,\"Рекуперант бета М\")+$AB$19+$AB$20+$AB$21-1)*$D$40,0)","v":0},{"$f":"IF(Стимуляторы!L3=\"Рекуперант бета М\",0.5^(COUNTIF(Стимуляторы!$D$3:L3,\"Рекуперант бета М\")+$AB$19+$AB$20+$AB$21-1)*$D$40,0)","v":0},{"$f":"IF(Стимуляторы!M3=\"Рекуперант бета М\",0.5^(COUNTIF(Стимуляторы!$D$3:M3,\"Рекуперант бета М\")+$AB$19+$AB$20+$AB$21-1)*$D$40,0)","v":0},0,"Вост. эфф.",{"$f":"IF(Стимуляторы!$D$3=\"Рекуперант бета М\",0.5^(COUNTIF(Стимуляторы!$D$3,\"Рекуперант бета М\")+AN19+AN20+AN21-1)*$F$41,0)","v":0},{"$f":"IF(Стимуляторы!E3=\"Рекуперант бета М\",0.5^(COUNTIF(Стимуляторы!$D$3:E3,\"Рекуперант бета М\")+$AN$19+$AN$20+$AN$21-1)*$F$41,0)","v":0},{"$f":"IF(Стимуляторы!F3=\"Рекуперант бета М\",0.5^(COUNTIF(Стимуляторы!$D$3:F3,\"Рекуперант бета М\")+$AN$19+$AN$20+$AN$21-1)*$F$41,0)","v":0},{"$f":"IF(Стимуляторы!G3=\"Рекуперант бета М\",0.5^(COUNTIF(Стимуляторы!$D$3:G3,\"Рекуперант бета М\")+$AN$19+$AN$20+$AN$21-1)*$F$41,0)","v":0},{"$f":"IF(Стимуляторы!H3=\"Рекуперант бета М\",0.5^(COUNTIF(Стимуляторы!$D$3:H3,\"Рекуперант бета М\")+$AN$19+$AN$20+$AN$21-1)*$F$41,0)","v":0},{"$f":"IF(Стимуляторы!I3=\"Рекуперант бета М\",0.5^(COUNTIF(Стимуляторы!$D$3:I3,\"Рекуперант бета М\")+$AN$19+$AN$20+$AN$21-1)*$F$41,0)","v":0},{"$f":"IF(Стимуляторы!J3=\"Рекуперант бета М\",0.5^(COUNTIF(Стимуляторы!$D$3:J3,\"Рекуперант бета М\")+$AN$19+$AN$20+$AN$21-1)*$F$41,0)","v":0},{"$f":"IF(Стимуляторы!K3=\"Рекуперант бета М\",0.5^(COUNTIF(Стимуляторы!$D$3:K3,\"Рекуперант бета М\")+$AN$19+$AN$20+$AN$21-1)*$F$41,0)","v":0},{"$f":"IF(Стимуляторы!L3=\"Рекуперант бета М\",0.5^(COUNTIF(Стимуляторы!$D$3:L3,\"Рекуперант бета М\")+$AN$19+$AN$20+$AN$21-1)*$F$41,0)","v":0},{"$f":"IF(Стимуляторы!M3=\"Рекуперант бета М\",0.5^(COUNTIF(Стимуляторы!$D$3:M3,\"Рекуперант бета М\")+$AN$19+$AN$20+$AN$21-1)*$F$41,0)","v":0},0]
[null,null,null,null,null,null,null,null,null,null,null,null,null,null,null,null,null,{"$f":"IF(Стимуляторы!D23=\"гемобуфер альфа\",0.5^(COUNTIF(Стимуляторы!D23,\"гемобуфер альфа\")+AB22-1)*$D$24,0)","v":0},{"$f":"IF(Стимуляторы!E22=\"гемобуфер бета\",0.5^(COUNTIF(Стимуляторы!D28:E28,\"Здоровье\")-1)*$D$24,0)","v":0},{"$f":"IF(Стимуляторы!F23=\"гемобуфер альфа\",0.5^(COUNTIF(Стимуляторы!D23:F24,\"гемобуфер альфа\")-1)*$D$17,0)","v":0},{"$f":"IF(Стимуляторы!G23=\"гемобуфер альфа\",0.5^(COUNTIF(Стимуляторы!D23:G24,\"гемобуфер альфа\")-1)*$D$17,0)","v":0},{"$f":"IF(Стимуляторы!H23=\"гемобуфер альфа\",0.5^(COUNTIF(Стимуляторы!D23:H24,\"гемобуфер альфа\")-1)*$D$17,0)","v":0},{"$f":"IF(Стимуляторы!I23=\"гемобуфер альфа\",0.5^(COUNTIF(Стимуляторы!D23:I24,\"гемобуфер альфа\")-1)*$D$17,0)","v":0},{"$f":"IF(Стимуляторы!J23=\"гемобуфер альфа\",0.5^(COUNTIF(Стимуляторы!D23:J24,\"гемобуфер альфа\")-1)*$D$17,0)","v":0},{"$f":"IF(Стимуляторы!K23=\"гемобуфер альфа\",0.5^(COUNTIF(Стимуляторы!D23:K24,\"гемобуфер альфа\")-1)*$D$17,0)","v":0},{"$f":"IF(Стимуляторы!L23=\"гемобуфер альфа\",0.5^(COUNTIF(Стимуляторы!D23:L24,\"гемобуфер альфа\")-1)*$D$17,0)","v":0},{"$f":"IF(Стимуляторы!M23=\"гемобуфер альфа\",0.5^(COUNTIF(Стимуляторы!D23:M24,\"гемобуфер альфа\")-1)*$D$17,0)","v":0},{"$f":"COUNTIF(R23:AA23,\">0\")","v":0}]
["Гемобуфер Бета",null,"Здоровье",0.2,"Сопр. эфф.",30,null,null,null,null,null,null,"токсичность",5,null,"Репульсин альфа","Сниж. урона",{"$f":"IF(Стимуляторы!D3=\"Репульсин альфа\",0.5^(COUNTIF(Стимуляторы!$D$3,\"Репульсин альфа\")-1)*$D$21,0)","v":0},{"$f":"IF(Стимуляторы!E3=\"Репульсин альфа\",0.5^(COUNTIF(Стимуляторы!$D$3:E3,\"Репульсин альфа\")-1)*$D$21,0)","v":0},{"$f":"IF(Стимуляторы!F3=\"Репульсин альфа\",0.5^(COUNTIF(Стимуляторы!$D$3:F3,\"Репульсин альфа\")-1)*$D$21,0)","v":0},{"$f":"IF(Стимуляторы!G3=\"Репульсин альфа\",0.5^(COUNTIF(Стимуляторы!$D$3:G3,\"Репульсин альфа\")-1)*$D$21,0)","v":0},{"$f":"IF(Стимуляторы!H3=\"Репульсин альфа\",0.5^(COUNTIF(Стимуляторы!$D$3:H3,\"Репульсин альфа\")-1)*$D$21,0)","v":0},{"$f":"IF(Стимуляторы!I3=\"Репульсин альфа\",0.5^(COUNTIF(Стимуляторы!$D$3:I3,\"Репульсин альфа\")-1)*$D$21,0)","v":0},{"$f":"IF(Стимуляторы!J3=\"Репульсин альфа\",0.5^(COUNTIF(Стимуляторы!$D$3:J3,\"Репульсин альфа\")-1)*$D$21,0)","v":0},{"$f":"IF(Стимуляторы!K3=\"Репульсин альфа\",0.5^(COUNTIF(Стимуляторы!$D$3:K3,\"Репульсин альфа\")-1)*$D$21,0)","v":0},{"$f":"IF(Стимуляторы!L3=\"Репульсин альфа\",0.5^(COUNTIF(Стимуляторы!$D$3:L3,\"Репульсин альфа\")-1)*$D$21,0)","v":0},{"$f":"IF(Стимуляторы!M3=\"Репульсин альфа\",0.5^(COUNTIF(Стимуляторы!$D$3:M3,\"Репульсин альфа\")-1)*$D$21,0)","v":0},0,"крит.защита",{"$f":"IF(Стимуляторы!D3=\"Репульсин альфа\",0.5^(COUNTIF(Стимуляторы!$D$3:D3,\"Репульсин альфа\")-1)*$F$21,0)","v":0},{"$f":"IF(Стимуляторы!E3=\"Репульсин альфа\",0.5^(COUNTIF(Стимуляторы!$D$3:E3,\"Репульсин альфа\")-1)*$F$21,0)","v":0},{"$f":"IF(Стимуляторы!F3=\"Репульсин альфа\",0.5^(COUNTIF(Стимуляторы!$D$3:F3,\"Репульсин альфа\")-1)*$F$21,0)","v":0},{"$f":"IF(Стимуляторы!G3=\"Репульсин альфа\",0.5^(COUNTIF(Стимуляторы!$D$3:G3,\"Репульсин альфа\")-1)*$F$21,0)","v":0},{"$f":"IF(Стимуляторы!H3=\"Репульсин альфа\",0.5^(COUNTIF(Стимуляторы!$D$3:H3,\"Репульсин альфа\")-1)*$F$21,0)","v":0},{"$f":"IF(Стимуляторы!I3=\"Репульсин альфа\",0.5^(COUNTIF(Стимуляторы!$D$3:I3,\"Репульсин альфа\")-1)*$F$21,0)","v":0},{"$f":"IF(Стимуляторы!J3=\"Репульсин альфа\",0.5^(COUNTIF(Стимуляторы!$D$3:J3,\"Репульсин альфа\")-1)*$F$21,0)","v":0},{"$f":"IF(Стимуляторы!K3=\"Репульсин альфа\",0.5^(COUNTIF(Стимуляторы!$D$3:K3,\"Репульсин альфа\")-1)*$F$21,0)","v":0},{"$f":"IF(Стимуляторы!L3=\"Репульсин альфа\",0.5^(COUNTIF(Стимуляторы!$D$3:L3,\"Репульсин альфа\")-1)*$F$21,0)","v":0},{"$f":"IF(Стимуляторы!M3=\"Репульсин альфа\",0.5^(COUNTIF(Стимуляторы!$D$3:M3,\"Репульсин альфа\")-1)*$F$21,0)","v":0},{"$f":"COUNTIF(AD24:AM24,\">0\")","v":0}]
["Моториум бета",null,"ОД",0.12,null,null,null,null,null,null,null,null,"токсичность",5,null,"Репульсин бета","Сниж. урона",{"$f":"IF(Стимуляторы!$D$3=\"Репульсин бета\",0.5^(COUNTIF(Стимуляторы!$D$3,\"Репульсин бета\")+AB24-1)*$D$28,0)","v":0},{"$f":"IF(Стимуляторы!E3=\"Репульсин бета\",0.5^(COUNTIF(Стимуляторы!$D$3:E3,\"Репульсин бета\")+$AB$24-1)*$D$28,0)","v":0},{"$f":"IF(Стимуляторы!F3=\"Репульсин бета\",0.5^(COUNTIF(Стимуляторы!$D$3:F3,\"Репульсин бета\")+$AB$24-1)*$D$28,0)","v":0},{"$f":"IF(Стимуляторы!G3=\"Репульсин бета\",0.5^(COUNTIF(Стимуляторы!$D$3:G3,\"Репульсин бета\")+$AB$24-1)*$D$28,0)","v":0},{"$f":"IF(Стимуляторы!H3=\"Репульсин бета\",0.5^(COUNTIF(Стимуляторы!$D$3:H3,\"Репульсин бета\")+$AB$24-1)*$D$28,0)","v":0},{"$f":"IF(Стимуляторы!I3=\"Репульсин бета\",0.5^(COUNTIF(Стимуляторы!$D$3:I3,\"Репульсин бета\")+$AB$24-1)*$D$28,0)","v":0},{"$f":"IF(Стимуляторы!J3=\"Репульсин бета\",0.5^(COUNTIF(Стимуляторы!$D$3:J3,\"Репульсин бета\")+$AB$24-1)*$D$28,0)","v":0},{"$f":"IF(Стимуляторы!K3=\"Репульсин бета\",0.5^(COUNTIF(Стимуляторы!$D$3:K3,\"Репульсин бета\")+$AB$24-1)*$D$28,0)","v":0},{"$f":"IF(Стимуляторы!L3=\"Репульсин бета\",0.5^(COUNTIF(Стимуляторы!$D$3:L3,\"Репульсин бета\")+$AB$24-1)*$D$28,0)","v":0},{"$f":"IF(Стимуляторы!M3=\"Репульсин бета\",0.5^(COUNTIF(Стимуляторы!$D$3:M3,\"Репульсин бета\")+$AB$24-1)*$D$28,0)","v":0},0,"крит.защита",{"$f":"IF(Стимуляторы!D3=\"Репульсин бета\",0.5^(COUNTIF(Стимуляторы!$D$3:D3,\"Репульсин бета\")+$AN$24-1)*$F$28,0)","v":0},{"$f":"IF(Стимуляторы!E3=\"Репульсин бета\",0.5^(COUNTIF(Стимуляторы!$D$3:E3,\"Репульсин бета\")+$AN$24-1)*$F$28,0)","v":0},{"$f":"IF(Стимуляторы!F3=\"Репульсин бета\",0.5^(COUNTIF(Стимуляторы!$D$3:F3,\"Репульсин бета\")+$AN$24-1)*$F$28,0)","v":0},{"$f":"IF(Стимуляторы!G3=\"Репульсин бета\",0.5^(COUNTIF(Стимуляторы!$D$3:G3,\"Репульсин бета\")+$AN$24-1)*$F$28,0)","v":0},{"$f":"IF(Стимуляторы!H3=\"Репульсин бета\",0.5^(COUNTIF(Стимуляторы!$D$3:H3,\"Репульсин бета\")+$AN$24-1)*$F$28,0)","v":0},{"$f":"IF(Стимуляторы!I3=\"Репульсин бета\",0.5^(COUNTIF(Стимуляторы!$D$3:I3,\"Репульсин бета\")+$AN$24-1)*$F$28,0)","v":0},{"$f":"IF(Стимуляторы!J3=\"Репульсин бета\",0.5^(COUNTIF(Стимуляторы!$D$3:J3,\"Репульсин бета\")+$AN$24-1)*$F$28,0)","v":0},{"$f":"IF(Стимуляторы!K3=\"Репульсин бета\",0.5^(COUNTIF(Стимуляторы!$D$3:K3,\"Репульсин бета\")+$AN$24-1)*$F$28,0)","v":0},{"$f":"IF(Стимуляторы!L3=\"Репульсин бета\",0.5^(COUNTIF(Стимуляторы!$D$3:L3,\"Репульсин бета\")+$AN$24-1)*$F$28,0)","v":0},{"$f":"IF(Стимуляторы!M3=\"Репульсин бета\",0.5^(COUNTIF(Стимуляторы!$D$3:M3,\"Репульсин бета\")+$AN$24-1)*$F$28,0)","v":0},{"$f":"COUNTIF(AD25:AM25,\">0\")","v":0}]
["Перцептил бета",null,"Точность",0.12,"Крит. поп. ",0.12,"Эфф.боепр.",0.12,null,null,null,null,"токсичность",4,null,"Репульсин альфа М","Сниж. урона",{"$f":"IF(Стимуляторы!D3=\"Репульсин альфа М\",0.5^(COUNTIF(Стимуляторы!$D$3,\"Репульсин альфа М\")+AB24+AB25-1)*$D$35,0)","v":0},{"$f":"IF(Стимуляторы!E3=\"Репульсин альфа М\",0.5^(COUNTIF(Стимуляторы!$D$3:E3,\"Репульсин альфа М\")+$AB$24+$AB$25-1)*$D$35,0)","v":0},{"$f":"IF(Стимуляторы!F3=\"Репульсин альфа М\",0.5^(COUNTIF(Стимуляторы!$D$3:F3,\"Репульсин альфа М\")+$AB$24+$AB$25-1)*$D$35,0)","v":0},{"$f":"IF(Стимуляторы!G3=\"Репульсин альфа М\",0.5^(COUNTIF(Стимуляторы!$D$3:G3,\"Репульсин альфа М\")+$AB$24+$AB$25-1)*$D$35,0)","v":0},{"$f":"IF(Стимуляторы!H3=\"Репульсин альфа М\",0.5^(COUNTIF(Стимуляторы!$D$3:H3,\"Репульсин альфа М\")+$AB$24+$AB$25-1)*$D$35,0)","v":0},{"$f":"IF(Стимуляторы!I3=\"Репульсин альфа М\",0.5^(COUNTIF(Стимуляторы!$D$3:I3,\"Репульсин альфа М\")+$AB$24+$AB$25-1)*$D$35,0)","v":0},{"$f":"IF(Стимуляторы!J3=\"Репульсин альфа М\",0.5^(COUNTIF(Стимуляторы!$D$3:J3,\"Репульсин альфа М\")+$AB$24+$AB$25-1)*$D$35,0)","v":0},{"$f":"IF(Стимуляторы!K3=\"Репульсин альфа М\",0.5^(COUNTIF(Стимуляторы!$D$3:K3,\"Репульсин альфа М\")+$AB$24+$AB$25-1)*$D$35,0)","v":0},{"$f":"IF(Стимуляторы!L3=\"Репульсин альфа М\",0.5^(COUNTIF(Стимуляторы!$D$3:L3,\"Репульсин альфа М\")+$AB$24+$AB$25-1)*$D$35,0)","v":0},{"$f":"IF(Стимуляторы!M3=\"Репульсин альфа М\",0.5^(COUNTIF(Стимуляторы!$D$3:M3,\"Репульсин альфа М\")+$AB$24+$AB$25-1)*$D$35,0)","v":0},0,"крит.защита",{"$f":"IF(Стимуляторы!D3=\"Репульсин альфа М\",0.5^(COUNTIF(Стимуляторы!$D$3:D3,\"Репульсин альфа М\")+$AN$24+$AN$25-1)*$F$35,0)","v":0},{"$f":"IF(Стимуляторы!E3=\"Репульсин альфа М\",0.5^(COUNTIF(Стимуляторы!$D$3:E3,\"Репульсин альфа М\")+$AN$24+$AN$25-1)*$F$35,0)","v":0},{"$f":"IF(Стимуляторы!F3=\"Репульсин альфа М\",0.5^(COUNTIF(Стимуляторы!$D$3:F3,\"Репульсин альфа М\")+$AN$24+$AN$25-1)*$F$35,0)","v":0},{"$f":"IF(Стимуляторы!G3=\"Репульсин альфа М\",0.5^(COUNTIF(Стимуляторы!$D$3:G3,\"Репульсин альфа М\")+$AN$24+$AN$25-1)*$F$35,0)","v":0},{"$f":"IF(Стимуляторы!H3=\"Репульсин альфа М\",0.5^(COUNTIF(Стимуляторы!$D$3:H3,\"Репульсин альфа М\")+$AN$24+$AN$25-1)*$F$35,0)","v":0},{"$f":"IF(Стимуляторы!I3=\"Репульсин альфа М\",0.5^(COUNTIF(Стимуляторы!$D$3:I3,\"Репульсин альфа М\")+$AN$24+$AN$25-1)*$F$35,0)","v":0},{"$f":"IF(Стимуляторы!J3=\"Репульсин альфа М\",0.5^(COUNTIF(Стимуляторы!$D$3:J3,\"Репульсин альфа М\")+$AN$24+$AN$25-1)*$F$35,0)","v":0},{"$f":"IF(Стимуляторы!K3=\"Репульсин альфа М\",0.5^(COUNTIF(Стимуляторы!$D$3:K3,\"Репульсин альфа М\")+$AN$24+$AN$25-1)*$F$35,0)","v":0},{"$f":"IF(Стимуляторы!L3=\"Репульсин альфа М\",0.5^(COUNTIF(Стимуляторы!$D$3:L3,\"Репульсин альфа М\")+$AN$24+$AN$25-1)*$F$35,0)","v":0},{"$f":"IF(Стимуляторы!M3=\"Репульсин альфа М\",0.5^(COUNTIF(Стимуляторы!$D$3:M3,\"Репульсин альфа М\")+$AN$24+$AN$25-1)*$F$35,0)","v":0},{"$f":"COUNTIF(AD26:AM26,\">0\")","v":0}]
["Рекуперант бета",null,"регенирация",0.11,"Вост. эфф.",8,null,null,null,null,null,null,"токсичность",5,null,"Репульсин бета М","Сниж. урона",{"$f":"IF(Стимуляторы!$D$3=\"Рекуперант бета М\",0.5^(COUNTIF(Стимуляторы!$D$3,\"Рекуперант бета М\")+AB24+AB25+AB26-1)*$D$42,0)","v":0},{"$f":"IF(Стимуляторы!E3=\"Репульсин бета М\",0.5^(COUNTIF(Стимуляторы!$D$3:E3,\"Репульсин бета М\")+$AB$24+$AB$25+$AB$26-1)*$D$42,0)","v":0},{"$f":"IF(Стимуляторы!F3=\"Репульсин бета М\",0.5^(COUNTIF(Стимуляторы!$D$3:F3,\"Репульсин бета М\")+$AB$24+$AB$25+$AB$26-1)*$D$42,0)","v":0},{"$f":"IF(Стимуляторы!G3=\"Репульсин бета М\",0.5^(COUNTIF(Стимуляторы!$D$3:G3,\"Репульсин бета М\")+$AB$24+$AB$25+$AB$26-1)*$D$42,0)","v":0},{"$f":"IF(Стимуляторы!H3=\"Репульсин бета М\",0.5^(COUNTIF(Стимуляторы!$D$3:H3,\"Репульсин бета М\")+$AB$24+$AB$25+$AB$26-1)*$D$42,0)","v":0},{"$f":"IF(Стимуляторы!I3=\"Репульсин бета М\",0.5^(COUNTIF(Стимуляторы!$D$3:I3,\"Репульсин бета М\")+$AB$24+$AB$25+$AB$26-1)*$D$42,0)","v":0},{"$f":"IF(Стимуляторы!J3=\"Репульсин бета М\",0.5^(COUNTIF(Стимуляторы!$D$3:J3,\"Репульсин бета М\")+$AB$24+$AB$25+$AB$26-1)*$D$42,0)","v":0},{"$f":"IF(Стимуляторы!K3=\"Репульсин бета М\",0.5^(COUNTIF(Стимуляторы!$D$3:K3,\"Репульсин бета М\")+$AB$24+$AB$25+$AB$26-1)*$D$42,0)","v":0},{"$f":"IF(Стимуляторы!L3=\"Репульсин бета М\",0.5^(COUNTIF(Стимуляторы!$D$3:L3,\"Репульсин бета М\")+$AB$24+$AB$25+$AB$26-1)*$D$42,0)","v":0},{"$f":"IF(Стимуляторы!M3=\"Репульсин бета М\",0.5^(COUNTIF(Стимуляторы!$D$3:M3,\"Репульсин бета М\")+$AB$24+$AB$25+$AB$26-1)*$D$42,0)","v":0},0,"крит.защита",{"$f":"IF(Стимуляторы!D3=\"Репульсин бета М\",0.5^(COUNTIF(Стимуляторы!$D$3:D3,\"Репульсин бета М\")+$AN$24+$AN$25+$AN$26-1)*$F$42,0)","v":0},{"$f":"IF(Стимуляторы!E3=\"Репульсин бета М\",0.5^(COUNTIF(Стимуляторы!$D$3:E3,\"Репульсин бета М\")+$AN$24+$AN$25+$AN$26-1)*$F$42,0)","v":0},{"$f":"IF(Стимуляторы!F3=\"Репульсин бета М\",0.5^(COUNTIF(Стимуляторы!$D$3:F3,\"Репульсин бета М\")+$AN$24+$AN$25+$AN$26-1)*$F$42,0)","v":0},{"$f":"IF(Стимуляторы!G3=\"Репульсин бета М\",0.5^(COUNTIF(Стимуляторы!$D$3:G3,\"Репульсин бета М\")+$AN$24+$AN$25+$AN$26-1)*$F$42,0)","v":0},{"$f":"IF(Стимуляторы!H3=\"Репульсин бета М\",0.5^(COUNTIF(Стимуляторы!$D$3:H3,\"Репульсин бета М\")+$AN$24+$AN$25+$AN$26-1)*$F$42,0)","v":0},{"$f":"IF(Стимуляторы!I3=\"Репульсин бета М\",0.5^(COUNTIF(Стимуляторы!$D$3:I3,\"Репульсин бета М\")+$AN$24+$AN$25+$AN$26-1)*$F$42,0)","v":0},{"$f":"IF(Стимуляторы!J3=\"Репульсин бета М\",0.5^(COUNTIF(Стимуляторы!$D$3:J3,\"Репульсин бета М\")+$AN$24+$AN$25+$AN$26-1)*$F$42,0)","v":0},{"$f":"IF(Стимуляторы!K3=\"Репульсин бета М\",0.5^(COUNTIF(Стимуляторы!$D$3:K3,\"Репульсин бета М\")+$AN$24+$AN$25+$AN$26-1)*$F$42,0)","v":0},{"$f":"IF(Стимуляторы!L3=\"Репульсин бета М\",0.5^(COUNTIF(Стимуляторы!$D$3:L3,\"Репульсин бета М\")+$AN$24+$AN$25+$AN$26-1)*$F$42,0)","v":0},{"$f":"IF(Стимуляторы!M3=\"Репульсин бета М\",0.5^(COUNTIF(Стимуляторы!$D$3:M3,\"Репульсин бета М\")+$AN$24+$AN$25+$AN$26-1)*$F$42,0)","v":0},{"$f":"COUNTIF(AD27:AM27,\">0\")","v":0}]
["Репульсин бета",null,"сниж. урона",0.06,"крит.защита",14,null,null,null,null,null,null,"токсичность",5,null,null,null,{"$f":"IF(Стимуляторы!D28=\"гемобуфер альфа\",0.5^(COUNTIF(Стимуляторы!D28,\"гемобуфер альфа\")+AB27-1)*$D$24,0)","v":0},{"$f":"IF(Стимуляторы!E27=\"гемобуфер бета\",0.5^(COUNTIF(Стимуляторы!D33:E33,\"Здоровье\")-1)*$D$24,0)","v":0},{"$f":"IF(Стимуляторы!F28=\"гемобуфер альфа\",0.5^(COUNTIF(Стимуляторы!D28:F29,\"гемобуфер альфа\")-1)*$D$17,0)","v":0},{"$f":"IF(Стимуляторы!G28=\"гемобуфер альфа\",0.5^(COUNTIF(Стимуляторы!D28:G29,\"гемобуфер альфа\")-1)*$D$17,0)","v":0},{"$f":"IF(Стимуляторы!H28=\"гемобуфер альфа\",0.5^(COUNTIF(Стимуляторы!D28:H29,\"гемобуфер альфа\")-1)*$D$17,0)","v":0},{"$f":"IF(Стимуляторы!I28=\"гемобуфер альфа\",0.5^(COUNTIF(Стимуляторы!D28:I29,\"гемобуфер альфа\")-1)*$D$17,0)","v":0},{"$f":"IF(Стимуляторы!J28=\"гемобуфер альфа\",0.5^(COUNTIF(Стимуляторы!D28:J29,\"гемобуфер альфа\")-1)*$D$17,0)","v":0},{"$f":"IF(Стимуляторы!K28=\"гемобуфер альфа\",0.5^(COUNTIF(Стимуляторы!D28:K29,\"гемобуфер альфа\")-1)*$D$17,0)","v":0},{"$f":"IF(Стимуляторы!L28=\"гемобуфер альфа\",0.5^(COUNTIF(Стимуляторы!D28:L29,\"гемобуфер альфа\")-1)*$D$17,0)","v":0},{"$f":"IF(Стимуляторы!M28=\"гемобуфер альфа\",0.5^(COUNTIF(Стимуляторы!D28:M29,\"гемобуфер альфа\")-1)*$D$17,0)","v":0}]
["Фервепост бета",null,"урон",0.12,null,null,null,null,null,null,null,null,"токсичность",5,null,"Фервепост альфа","урон",{"$f":"IF(Стимуляторы!D3=\"Фервепост альфа\",0.5^(COUNTIF(Стимуляторы!$D$3:D3,\"Фервепост альфа\")-1)*$D$22,0)","v":0},{"$f":"IF(Стимуляторы!E3=\"Фервепост альфа\",0.5^(COUNTIF(Стимуляторы!$D$3:E3,\"Фервепост альфа\")-1)*$D$22,0)","v":0},{"$f":"IF(Стимуляторы!F3=\"Фервепост альфа\",0.5^(COUNTIF(Стимуляторы!$D$3:F3,\"Фервепост альфа\")-1)*$D$22,0)","v":0},{"$f":"IF(Стимуляторы!G3=\"Фервепост альфа\",0.5^(COUNTIF(Стимуляторы!$D$3:G3,\"Фервепост альфа\")-1)*$D$22,0)","v":0},{"$f":"IF(Стимуляторы!H3=\"Фервепост альфа\",0.5^(COUNTIF(Стимуляторы!$D$3:H3,\"Фервепост альфа\")-1)*$D$22,0)","v":0},{"$f":"IF(Стимуляторы!I3=\"Фервепост альфа\",0.5^(COUNTIF(Стимуляторы!$D$3:I3,\"Фервепост альфа\")-1)*$D$22,0)","v":0},{"$f":"IF(Стимуляторы!J3=\"Фервепост альфа\",0.5^(COUNTIF(Стимуляторы!$D$3:J3,\"Фервепост альфа\")-1)*$D$22,0)","v":0},{"$f":"IF(Стимуляторы!K3=\"Фервепост альфа\",0.5^(COUNTIF(Стимуляторы!$D$3:K3,\"Фервепост альфа\")-1)*$D$22,0)","v":0},{"$f":"IF(Стимуляторы!L3=\"Фервепост альфа\",0.5^(COUNTIF(Стимуляторы!$D$3:L3,\"Фервепост альфа\")-1)*$D$22,0)","v":0},{"$f":"IF(Стимуляторы!M3=\"Фервепост альфа\",0.5^(COUNTIF(Стимуляторы!$D$3:M3,\"Фервепост альфа\")-1)*$D$22,0)","v":0},0]
[null,null,null,null,null,null,null,null,null,null,null,null,null,null,null,"Фервепост бета","урон",{"$f":"IF(Стимуляторы!D3=\"Фервепост бета\",0.5^(COUNTIF(Стимуляторы!$D$3:D3,\"Фервепост бета\")+$AB$29-1)*$D$29,0)","v":0},{"$f":"IF(Стимуляторы!E3=\"Фервепост бета\",0.5^(COUNTIF(Стимуляторы!$D$3:E3,\"Фервепост бета\")+$AB$29-1)*$D$29,0)","v":0},{"$f":"IF(Стимуляторы!F3=\"Фервепост бета\",0.5^(COUNTIF(Стимуляторы!$D$3:F3,\"Фервепост бета\")+$AB$29-1)*$D$29,0)","v":0},{"$f":"IF(Стимуляторы!G3=\"Фервепост бета\",0.5^(COUNTIF(Стимуляторы!$D$3:G3,\"Фервепост бета\")+$AB$29-1)*$D$29,0)","v":0},{"$f":"IF(Стимуляторы!H3=\"Фервепост бета\",0.5^(COUNTIF(Стимуляторы!$D$3:H3,\"Фервепост бета\")+$AB$29-1)*$D$29,0)","v":0},{"$f":"IF(Стимуляторы!I3=\"Фервепост бета\",0.5^(COUNTIF(Стимуляторы!$D$3:I3,\"Фервепост бета\")+$AB$29-1)*$D$29,0)","v":0},{"$f":"IF(Стимуляторы!J3=\"Фервепост бета\",0.5^(COUNTIF(Стимуляторы!$D$3:J3,\"Фервепост бета\")+$AB$29-1)*$D$29,0)","v":0},{"$f":"IF(Стимуляторы!K3=\"Фервепост бета\",0.5^(COUNTIF(Стимуляторы!$D$3:K3,\"Фервепост бета\")+$AB$29-1)*$D$29,0)","v":0},{"$f":"IF(Стимуляторы!L3=\"Фервепост бета\",0.5^(COUNTIF(Стимуляторы!$D$3:L3,\"Фервепост бета\")+$AB$29-1)*$D$29,0)","v":0},{"$f":"IF(Стимуляторы!M3=\"Фервепост бета\",0.5^(COUNTIF(Стимуляторы!$D$3:M3,\"Фервепост бета\")+$AB$29-1)*$D$29,0)","v":0},0]
["Гемобуфер Альфа М",null,"Здоровье",0.2,"Сопр. эфф.",30,null,null,null,null,null,null,"токсичность",4,null,"Фервепост альфа М","урон",{"$f":"IF(Стимуляторы!D3=\"Фервепост альфа М\",0.5^(COUNTIF(Стимуляторы!$D$3:D3,\"Фервепост альфа М\")+$AB$29+$AB$30-1)*$D$36,0)","v":0},{"$f":"IF(Стимуляторы!E3=\"Фервепост альфа М\",0.5^(COUNTIF(Стимуляторы!$D$3:E3,\"Фервепост альфа М\")+$AB$29+$AB$30-1)*$D$36,0)","v":0},{"$f":"IF(Стимуляторы!F3=\"Фервепост альфа М\",0.5^(COUNTIF(Стимуляторы!$D$3:F3,\"Фервепост альфа М\")+$AB$29+$AB$30-1)*$D$36,0)","v":0},{"$f":"IF(Стимуляторы!G3=\"Фервепост альфа М\",0.5^(COUNTIF(Стимуляторы!$D$3:G3,\"Фервепост альфа М\")+$AB$29+$AB$30-1)*$D$36,0)","v":0},{"$f":"IF(Стимуляторы!H3=\"Фервепост альфа М\",0.5^(COUNTIF(Стимуляторы!$D$3:H3,\"Фервепост альфа М\")+$AB$29+$AB$30-1)*$D$36,0)","v":0},{"$f":"IF(Стимуляторы!I3=\"Фервепост альфа М\",0.5^(COUNTIF(Стимуляторы!$D$3:I3,\"Фервепост альфа М\")+$AB$29+$AB$30-1)*$D$36,0)","v":0},{"$f":"IF(Стимуляторы!J3=\"Фервепост альфа М\",0.5^(COUNTIF(Стимуляторы!$D$3:J3,\"Фервепост альфа М\")+$AB$29+$AB$30-1)*$D$36,0)","v":0},{"$f":"IF(Стимуляторы!K3=\"Фервепост альфа М\",0.5^(COUNTIF(Стимуляторы!$D$3:K3,\"Фервепост альфа М\")+$AB$29+$AB$30-1)*$D$36,0)","v":0},{"$f":"IF(Стимуляторы!L3=\"Фервепост альфа М\",0.5^(COUNTIF(Стимуляторы!$D$3:L3,\"Фервепост альфа М\")+$AB$29+$AB$30-1)*$D$36,0)","v":0},{"$f":"IF(Стимуляторы!M3=\"Фервепост альфа М\",0.5^(COUNTIF(Стимуляторы!$D$3:M3,\"Фервепост альфа М\")+$AB$29+$AB$30-1)*$D$36,0)","v":0},0]
["Моториум альфа М",null,"ОД",0.14000000000000001,null,null,null,null,null,null,null,null,"токсичность",4,null,"Фервепост бета М","урон",{"$f":"IF(Стимуляторы!D3=\"Фервепост бета М\",0.5^(COUNTIF(Стимуляторы!$D$3:D3,\"Фервепост бета М\")+$AB$29+$AB$30+$AB$31-1)*$D$43,0)","v":0},{"$f":"IF(Стимуляторы!E3=\"Фервепост бета М\",0.5^(COUNTIF(Стимуляторы!$D$3:E3,\"Фервепост бета М\")+$AB$29+$AB$30+$AB$31-1)*$D$43,0)","v":0},{"$f":"IF(Стимуляторы!F3=\"Фервепост бета М\",0.5^(COUNTIF(Стимуляторы!$D$3:F3,\"Фервепост бета М\")+$AB$29+$AB$30+$AB$31-1)*$D$43,0)","v":0},{"$f":"IF(Стимуляторы!G3=\"Фервепост бета М\",0.5^(COUNTIF(Стимуляторы!$D$3:G3,\"Фервепост бета М\")+$AB$29+$AB$30+$AB$31-1)*$D$43,0)","v":0},{"$f":"IF(Стимуляторы!H3=\"Фервепост бета М\",0.5^(COUNTIF(Стимуляторы!$D$3:H3,\"Фервепост бета М\")+$AB$29+$AB$30+$AB$31-1)*$D$43,0)","v":0},{"$f":"IF(Стимуляторы!I3=\"Фервепост бета М\",0.5^(COUNTIF(Стимуляторы!$D$3:I3,\"Фервепост бета М\")+$AB$29+$AB$30+$AB$31-1)*$D$43,0)","v":0},{"$f":"IF(Стимуляторы!J3=\"Фервепост бета М\",0.5^(COUNTIF(Стимуляторы!$D$3:J3,\"Фервепост бета М\")+$AB$29+$AB$30+$AB$31-1)*$D$43,0)","v":0},{"$f":"IF(Стимуляторы!K3=\"Фервепост бета М\",0.5^(COUNTIF(Стимуляторы!$D$3:K3,\"Фервепост бета М\")+$AB$29+$AB$30+$AB$31-1)*$D$43,0)","v":0},{"$f":"IF(Стимуляторы!L3=\"Фервепост бета М\",0.5^(COUNTIF(Стимуляторы!$D$3:L3,\"Фервепост бета М\")+$AB$29+$AB$30+$AB$31-1)*$D$43,0)","v":0},{"$f":"IF(Стимуляторы!M3=\"Фервепост бета М\",0.5^(COUNTIF(Стимуляторы!$D$3:M3,\"Фервепост бета М\")+$AB$29+$AB$30+$AB$31-1)*$D$43,0)","v":0},0]
["Перцептил альфа М",null,"Точность",0.12,"Крит. поп. ",0.12,"Эфф.боепр.",0.12,null,null,null,null,"токсичность",5]
["Рекуперант альфа М",null,"регенирация",0.11,"Вост. эфф.",8,null,null,null,null,null,null,"токсичность",4]
["Репульсин альфа М",null,"сниж. урона",0.06,"крит.защита",14,null,null,null,null,null,null,"токсичность",4]
["Фервепост альфа М",null,"урон",0.12,null,null,null,null,null,null,null,null,"токсичность",4]
[]
["Гемобуфер Бета М",null,"Здоровье",0.24,"Сопр. эфф.",35,null,null,null,null,null,null,"токсичность",4]
["Моториум бета М",null,"ОД",0.14000000000000001,null,null,null,null,null,null,null,null,"токсичность",4]
["Перцептил бета М",null,"Точность",0.14000000000000001,"Крит. поп. ",0.14000000000000001,"Эфф.боепр.",0.14000000000000001,null,null,null,null,"токсичность",4]
["Рекуперант бета М",null,"регенирация",0.13200000000000001,"Вост. эфф.",9,null,null,null,null,null,null,"токсичность",4]
["Репульсин бета М",null,"сниж. урона",7.0000000000000007E-2,"крит.защита",16,null,null,null,null,null,null,"токсичность",4]
["Фервепост бета М",null,"урон",0.14000000000000001,null,null,null,null,null,null,null,null,"токсичность",4]